Workbook

Sheet KTC
A1: 1 | B1: 1 | C1: 1 | D1: 1 | E1: 1 | F1: 1 | G1: 1 | H1: 0 | I1: 0 | J1: 1 | K1: 0 | L1: 0 | M1: 1 | N1: 1 | P1: 0 | S1: =AM37/AM37 -> 1 | T1: =190*S1 -> 190 | U1: =SQRT(2) -> 1.414213562 | V1: 50 | W1: 0 | X1: =(((U1*T1)*SIN(2*PI()*(1*(V1/50000*(ROW()-1))+W1/360)))) -> 0 | Y1: =((($U$2*$T$2)*SIN(2*PI()*(1*($V$2/50000*(ROW()-1))+(((((-Z1)*DEGREES(ACOS($W$2)))+$W$1))*($V$2/$V$1))/360)))) -> -35.1560884 | Z1: =IF(AZ43="cap",-1,1) -> 1
A2: MCB | B2: M1 | C2: M2 | D2: M3 | E2: M4 | F2: M5 | G2: CCB | H2: K1 | I2: K2 | J2: K3 | K2: K4 | L2: K5 | M2: K6 | N2: A/M | T2: 80 | U2: =SQRT(2) -> 1.414213562 | V2: 50 | W2: =AV43 -> 0.9504953252 | X2: =(((U1*T1)*SIN(2*PI()*(1*(V1/50000*(ROW()-1))+W1/360)))) -> 1.688284408 | Y2: -34.47972858 | Z2: =Z1 -> 1
A3: D1 | B3: D2 | C3: D3 | D3: D4 | E3: D5 | F3: D6 | G3: D7 | H3: D8 | I3: D9 | J3: D10 | K3: D11 | L3: D12 | M3: D13 | N3: A/M | X3: =(((U1*T1)*SIN(2*PI()*(1*(V1/50000*(ROW()-1))+W1/360)))) -> 3.376502165 | Y3: -33.80200756 | Z3: =Z2 -> 1
A4: Smax | B4: =(SUM(CD54:DP55)*1.1)*N12 -> 357.5 | X4: =(((U1*T1)*SIN(2*PI()*(1*(V1/50000*(ROW()-1))+W1/360)))) -> 5.064586624 | Y4: -33.12295209 | Z4: 1
A5: 5000 | B5: 4000 | C5: 3250 | D5: 3000 | E5: 2500 | F5: 2000 | G5: 1600 | H5: 1250 | I5: 1000 | J5: 800 | K5: 630 | L5: 500 | M5: 400 | N5: 315 | O5: 250 | P5: 200 | Q5: 160 | R5: 125 | S5: 100 | T5: 80 | U5: 63 | V5: 50 | W5: 30 | X5: =(((U1*T1)*SIN(2*PI()*(1*(V1/50000*(ROW()-1))+W1/360)))) -> 6.752471142 | Y5: -32.44258899 | Z5: 1
A6: =IF($B$4<A5,A5,B5) -> 5000 | B6: 4000 | C6: 3250 | D6: 3000 | E6: 2500 | F6: 2000 | G6: 1600 | H6: 1250 | I6: 1000 | J6: 800 | K6: 630 | L6: 500 | M6: 400 | N6: 250 | O6: 200 | P6: 160 | Q6: 125 | R6: 100 | S6: 80 | T6: 63 | U6: 50 | V6: 30 | W6: =IF($B$4<W5,W5,0) -> 0 | X6: =(((U1*T1)*SIN(2*PI()*(1*(V1/50000*(ROW()-1))+W1/360)))) -> 8.440089084 | Y6: -31.76094511 | Z6: 1
A7: =IF($B$4>A5,#REF!,A5) -> 5000 | B7: =IF($B$4>B5,A5,B5) -> 4000 | C7: 3250 | D7: 3000 | E7: 2500 | F7: 2000 | G7: 1600 | H7: 1250 | I7: 1000 | J7: 800 | K7: 630 | L7: 500 | M7: 400 | N7: 400 | O7: 315 | P7: 250 | Q7: 200 | R7: 160 | S7: 125 | T7: 100 | U7: 80 | V7: 63 | W7: 50 | X7: =(((U1*T1)*SIN(2*PI()*(1*(V1/50000*(ROW()-1))+W1/360)))) -> 10.12737383 | Y7: -31.07804736 | Z7: 1
A8: =A6/A7 -> 1 | B8: =B6/B7 -> 1 | C8: =C6/C7 -> 1 | D8: =D6/D7 -> 1 | E8: =E6/E7 -> 1 | F8: =F6/F7 -> 1 | G8: =G6/G7 -> 1 | H8: =H6/H7 -> 1 | I8: =I6/I7 -> 1 | J8: =J6/J7 -> 1 | K8: =K6/K7 -> 1 | L8: =L6/L7 -> 1 | M8: =M6/M7 -> 1 | N8: =N6/N7 -> 0.625 | O8: =O6/O7 -> 0.6349206349 | P8: =P6/P7 -> 0.64 | Q8: =Q6/Q7 -> 0.625 | R8: =R6/R7 -> 0.625 | S8: =S6/S7 -> 0.64 | T8: =T6/T7 -> 0.63 | U8: =U6/U7 -> 0.625 | V8: =V6/V7 -> 0.4761904762 | W8: =W6/W7 -> 0 | X8: =(((U1*T1)*SIN(2*PI()*(1*(V1/50000*(ROW()-1))+W1/360)))) -> 11.81425876 | Y8: -30.3939227 | Z8: 1
A9: =IF(A8=1,A7,9999) -> 5000 | B9: =IF(B8=1,B7,9999) -> 4000 | C9: =IF(C8=1,C7,9999) -> 3250 | D9: =IF(D8=1,D7,9999) -> 3000 | E9: =IF(E8=1,E7,9999) -> 2500 | F9: =IF(F8=1,F7,9999) -> 2000 | G9: =IF(G8=1,G7,9999) -> 1600 | H9: =IF(H8=1,H7,9999) -> 1250 | I9: =IF(I8=1,I7,9999) -> 1000 | J9: =IF(J8=1,J7,9999) -> 800 | K9: =IF(K8=1,K7,9999) -> 630 | L9: =IF(L8=1,L7,9999) -> 500 | M9: =IF(M8=1,M7,9999) -> 400 | N9: =IF(N8=1,N7,9999) -> 9999 | O9: =IF(O8=1,O7,9999) -> 9999 | P9: =IF(P8=1,P7,9999) -> 9999 | Q9: =IF(Q8=1,Q7,9999) -> 9999 | R9: =IF(R8=1,R7,9999) -> 9999 | S9: =IF(S8=1,S7,9999) -> 9999 | T9: =IF(T8=1,T7,9999) -> 9999 | U9: =IF(U8=1,U7,9999) -> 9999 | V9: =IF(V8=1,V7,9999) -> 9999 | W9: =IF(W8=1,W7,9999) -> 9999 | X9: =(((U1*T1)*SIN(2*PI()*(1*(V1/50000*(ROW()-1))+W1/360)))) -> 13.50067728 | Y9: -29.70859815 | Z9: 1
A10: S(trf) | B10: =(SMALL(A9:W9,1))*N12 -> 400 | X10: =(((U1*T1)*SIN(2*PI()*(1*(V1/50000*(ROW()-1))+W1/360)))) -> 15.18656282 | Y10: -29.02210074 | Z10: 1
H11: 4314-11-25 | K11: =TODAY() -> 2025-03-21 | X11: =(((U1*T1)*SIN(2*PI()*(1*(V1/50000*(ROW()-1))+W1/360)))) -> 16.87184882 | Y11: -28.3344576 | Z11: 1
B12: 1 | C12: 2 | D12: 3 | E12: 4 | F12: 5 | G12: 6 | J12: min | L12: max | M12: min | N12: =(IF(H11<K11,0,1))*V27 -> 1 | O12: =((H1*(IF(N1=1,0,1)))+(O13*$N$1))*V27 -> 0 | P12: =((I1*(IF(N1=1,0,1)))+(P13*$N$1))*V27 -> 1 | Q12: =((J1*(IF(N1=1,0,1)))+(Q13*$N$1))*V27 -> 1 | R12: =((K1*(IF(N1=1,0,1)))+(R13*$N$1))*V27 -> 0 | S12: =((L1*(IF(N1=1,0,1)))+(S13*$N$1))*V27 -> 1 | T12: =((M1*(IF(N1=1,0,1)))+(T13*$N$1))*V27 -> 0 | X12: =(((U1*T1)*SIN(2*PI()*(1*(V1/50000*(ROW()-1))+W1/360)))) -> 18.55646875 | Y12: -27.64569586 | Z12: 1
A13: kt | B13: =AH55*V27*N12 -> 5 | C13: =AO55*V27*N12 -> 10 | D13: =AV55*V27*N12 -> 20 | E13: =BC55*V27*N12 -> 40 | F13: =BJ55*V27*N12 -> 80 | G13: =BQ55*V27*N12 -> 80 | H13: Qiht | I13: Qeld | J13: =SMALL(J14:J77,1) -> 0.4578673465 | L13: =LARGE(L14:L77,1) -> 35 | M13: =SMALL(M14:M77,1) -> 34 | O13: =SUM(O14:O77) -> 0 | P13: =SUM(P14:P77) -> 1 | Q13: 1 | R13: 0 | S13: 1 | T13: 0 | X13: =(((U1*T1)*SIN(2*PI()*(1*(V1/50000*(ROW()-1))+W1/360)))) -> 20.2403561 | Y13: -26.95584272 | Z13: 1
A14: 1 | B14: 0 | C14: 0 | D14: 0 | E14: 0 | F14: 0 | G14: 0 | H14: =(IF(AQ43="cap",((SQRT((AU39/AM43)^2-AU39^2))+BZ40),(BZ40-(SQRT((AU39/AM43)^2-AU39^2)))))*V27*N12 -> 109.5421327 | I14: =B14*$B$13+C14*$C$13+D14*$D$13+E14*$E$13+F14*$F$13+G14*$G$13 -> 0 | J14: =ABS(H14-I14) -> 109.5421327 | K14: =IF(J14=$J$13,1,0) -> 0 | L14: =A14*K14 -> 0 | M14: =IF(L14=0,$L$13,L14) -> 35 | N14: =IF((M14/$M$13)=1,1,0) -> 0 | O14: =N14*B14*U14 -> 0 | P14: =N14*C14*U14 -> 0 | Q14: =N14*D14*U14 -> 0 | R14: =N14*E14*U14 -> 0 | S14: =N14*F14*U14 -> 0 | T14: =N14*G14*U14 -> 0 | U14: =L14/M14 -> 0 | X14: =(((U1*T1)*SIN(2*PI()*(1*(V1/50000*(ROW()-1))+W1/360)))) -> 21.92344439 | Y14: -26.2649254 | Z14: 1
A15: 2 | B15: 1 | C15: 0 | D15: 0 | E15: 0 | F15: 0 | G15: 0 | H15: =H14 -> 109.5421327 | I15: 5 | J15: =ABS(H15-I15) -> 104.5421327 | K15: 0 | L15: =A15*K15 -> 0 | M15: 35 | N15: 0 | O15: =N15*B15*U15 -> 0 | P15: =N15*C15*U15 -> 0 | Q15: =N15*D15*U15 -> 0 | R15: =N15*E15*U15 -> 0 | S15: =N15*F15*U15 -> 0 | T15: =N15*G15*U15 -> 0 | U15: =L15/M15 -> 0 | X15: =(((U1*T1)*SIN(2*PI()*(1*(V1/50000*(ROW()-1))+W1/360)))) -> 23.60566719 | Y15: -25.57297119 | Z15: 1
A16: 3 | B16: 0 | C16: 1 | D16: 0 | E16: 0 | F16: 0 | G16: 0 | H16: =H15 -> 109.5421327 | I16: 10 | J16: 99.54213265 | K16: 0 | L16: 0 | M16: 35 | N16: 0 | O16: 0 | P16: 0 | Q16: 0 | R16: 0 | S16: 0 | T16: 0 | U16: 0 | X16: =(((U1*T1)*SIN(2*PI()*(1*(V1/50000*(ROW()-1))+W1/360)))) -> 25.28695808 | Y16: -24.8800074 | Z16: 1
A17: 4 | B17: 0 | C17: 0 | D17: 1 | E17: 0 | F17: 0 | G17: 0 | H17: =H16 -> 109.5421327 | I17: 20 | J17: 89.54213265 | K17: 0 | L17: 0 | M17: 35 | N17: 0 | O17: 0 | P17: 0 | Q17: 0 | R17: 0 | S17: 0 | T17: 0 | U17: 0 | X17: =(((U1*T1)*SIN(2*PI()*(1*(V1/50000*(ROW()-1))+W1/360)))) -> 26.96725067 | Y17: -24.1860614 | Z17: 1
A18: 5 | B18: 0 | C18: 0 | D18: 0 | E18: 1 | F18: 0 | G18: 0 | H18: 109.5421327 | I18: 40 | J18: 69.54213265 | K18: 0 | L18: 0 | M18: 35 | N18: 0 | O18: 0 | P18: 0 | Q18: 0 | R18: 0 | S18: 0 | T18: 0 | U18: 0 | X18: =(((U1*T1)*SIN(2*PI()*(1*(V1/50000*(ROW()-1))+W1/360)))) -> 28.64647865 | Y18: -23.49116057 | Z18: 1
A19: 6 | B19: 0 | C19: 0 | D19: 0 | E19: 0 | F19: 1 | G19: 0 | H19: 109.5421327 | I19: 80 | J19: 29.54213265 | K19: 0 | L19: 0 | M19: 35 | N19: 0 | O19: 0 | P19: 0 | Q19: 0 | R19: 0 | S19: 0 | T19: 0 | U19: 0 | X19: =(((U1*T1)*SIN(2*PI()*(1*(V1/50000*(ROW()-1))+W1/360)))) -> 30.32457572 | Y19: -22.79533234 | Z19: 1
A20: 7 | B20: 0 | C20: 0 | D20: 0 | E20: 0 | F20: 0 | G20: 1 | H20: 109.5421327 | I20: 80 | J20: 29.54213265 | K20: 0 | L20: 0 | M20: 35 | N20: 0 | O20: 0 | P20: 0 | Q20: 0 | R20: 0 | S20: 0 | T20: 0 | U20: 0 | X20: =(((U1*T1)*SIN(2*PI()*(1*(V1/50000*(ROW()-1))+W1/360)))) -> 32.00147562 | Y20: -22.0986042 | Z20: 1
A21: 8 | B21: 1 | C21: 1 | D21: 0 | E21: 0 | F21: 0 | G21: 0 | H21: 109.5421327 | I21: 15 | J21: 94.54213265 | K21: 0 | L21: 0 | M21: 35 | N21: 0 | O21: 0 | P21: 0 | Q21: 0 | R21: 0 | S21: 0 | T21: 0 | U21: 0 | X21: =(((U1*T1)*SIN(2*PI()*(1*(V1/50000*(ROW()-1))+W1/360)))) -> 33.67711216 | Y21: -21.40100365 | Z21: 1
A22: 9 | B22: 1 | C22: 0 | D22: 1 | E22: 0 | F22: 0 | G22: 0 | H22: 109.5421327 | I22: 25 | J22: 84.54213265 | K22: 0 | L22: 0 | M22: 35 | N22: 0 | O22: 0 | P22: 0 | Q22: 0 | R22: 0 | S22: 0 | T22: 0 | U22: 0 | X22: =(((U1*T1)*SIN(2*PI()*(1*(V1/50000*(ROW()-1))+W1/360)))) -> 35.35141918 | Y22: -20.70255821 | Z22: 1
A23: 10 | B23: 1 | C23: 0 | D23: 0 | E23: 1 | F23: 0 | G23: 0 | H23: 109.5421327 | I23: 45 | J23: 64.54213265 | K23: 0 | L23: 0 | M23: 35 | N23: 0 | O23: 0 | P23: 0 | Q23: 0 | R23: 0 | S23: 0 | T23: 0 | U23: 0 | X23: =(((U1*T1)*SIN(2*PI()*(1*(V1/50000*(ROW()-1))+W1/360)))) -> 37.02433059 | Y23: -20.00329548 | Z23: 1
A24: 11 | B24: 1 | C24: 0 | D24: 0 | E24: 0 | F24: 1 | G24: 0 | H24: 109.5421327 | I24: 85 | J24: 24.54213265 | K24: 0 | L24: 0 | M24: 35 | N24: 0 | O24: 0 | P24: 0 | Q24: 0 | R24: 0 | S24: 0 | T24: 0 | U24: 0 | X24: =(((U1*T1)*SIN(2*PI()*(1*(V1/50000*(ROW()-1))+W1/360)))) -> 38.69578034 | Y24: -19.30324305 | Z24: 1
A25: 12 | B25: 1 | C25: 0 | D25: 0 | E25: 0 | F25: 0 | G25: 1 | H25: 109.5421327 | I25: 85 | J25: 24.54213265 | K25: 0 | L25: 0 | M25: 35 | N25: 0 | O25: 0 | P25: 0 | Q25: 0 | R25: 0 | S25: 0 | T25: 0 | U25: 0 | X25: =(((U1*T1)*SIN(2*PI()*(1*(V1/50000*(ROW()-1))+W1/360)))) -> 40.36570245 | Y25: -18.60242856 | Z25: 1
A26: 13 | B26: 0 | C26: 1 | D26: 1 | E26: 0 | F26: 0 | G26: 0 | H26: 109.5421327 | I26: 30 | J26: 79.54213265 | K26: 0 | L26: 0 | M26: 35 | N26: 0 | O26: 0 | P26: 0 | Q26: 0 | R26: 0 | S26: 0 | T26: 0 | U26: 0 | V26: 43 | X26: =(((U1*T1)*SIN(2*PI()*(1*(V1/50000*(ROW()-1))+W1/360)))) -> 42.034031 | Y26: -17.90087968 | Z26: 1 | CU26: https://aktif.net/ | DS26: S(load)
A27: 14 | B27: 0 | C27: 1 | D27: 0 | E27: 1 | F27: 0 | G27: 0 | H27: 109.5421327 | I27: 50 | J27: 59.54213265 | K27: 0 | L27: 0 | M27: 35 | N27: 0 | O27: 0 | P27: 0 | Q27: 0 | R27: 0 | S27: 0 | T27: 0 | U27: 0 | V27: =IF(V26>V28,0,1) -> 1 | W27: 112 | X27: =(((U1*T1)*SIN(2*PI()*(1*(V1/50000*(ROW()-1))+W1/360)))) -> 43.70070011 | Y27: -17.1986241 | Z27: 1 | AQ27: =IF((((A1*(A1*5))*(G1*(G1*3))+(N1*(N1*1)))*(IF(((A1*(A1*5))*(G1*(G1*3))+(N1*(N1*1)))<15,0,1)))=0,"PFC RELAY OFF",IF((((A1*(A1*5))*(G1*(G1*3))+(N1*(N1*1)))*(IF(((A1*(A1*5))*(G1*(G1*3))+(N1*(N1*1)))<15,0,1)))=16,"PFC RELAY ON AUTO","PFC RELAY ON MANUAL")) -> PFC RELAY ON AUTO | CA27: =IF((ABS(BP40)=ABS(BZ40))," ",IF(CC27<0,"<--->","<--->")) -> <---> | CC27: =IF((((-AH55*(IF((IF(((O12*G1*BW32)*A1)=1,"ON","OFF"))="ON",1,0))-AO55*(IF((IF(((P12*G1*BW32)*A1)=1,"ON","OFF"))="ON",1,0))-AV55*(IF((IF(((Q12*G1*BW32)*A1)=1,"ON","OFF"))="ON",1,0))-BC55*(IF((IF(((R12*G1*BW32)*A1)=1,"ON","OFF"))="ON",1,0))-BJ55*(IF((IF(((S12*G1*BW32)*A1)=1,"ON","OFF"))="ON",1,0))-BQ55*(IF((IF(((T12*G1*BW32)*A1)=1,"ON","OFF"))="ON",1,0)))*G1)+(((IF((IF(B1*A1*A1=1,"ON","OFF"))="ON",1,0))*CD56)+((IF((IF(C1*A1*A1=1,"ON","OFF"))="ON",1,0))*CL56)+((IF((IF(D1*A1*A1=1,"ON","OFF"))="ON",1,0))*CT56)+((IF((IF(E1*A1*A1=1,"ON","OFF"))="ON",1,0))*DB56)+((IF((IF(F1*A1*A1=1,"ON","OFF"))="ON",1,0))*DJ56)))=0," ",(((-AH55*(IF((IF(((O12*G1*BW32)*A1)=1,"ON","OFF"))="ON",1,0))-AO55*(IF((IF(((P12*G1*BW32)*A1)=1,"ON","OFF"))="ON",1,0))-AV55*(IF((IF(((Q12*G1*BW32)*A1)=1,"ON","OFF"))="ON",1,0))-BC55*(IF((IF(((R12*G1*BW32)*A1)=1,"ON","OFF"))="ON",1,0))-BJ55*(IF((IF(((S12*G1*BW32)*A1)=1,"ON","OFF"))="ON",1,0))-BQ55*(IF((IF(((T12*G1*BW32)*A1)=1,"ON","OFF"))="ON",1,0)))*G1)+(((IF((IF(B1*A1*A1=1,"ON","OFF"))="ON",1,0))*CD56)+((IF((IF(C1*A1*A1=1,"ON","OFF"))="ON",1,0))*CL56)+((IF((IF(D1*A1*A1=1,"ON","OFF"))="ON",1,0))*CT56)+((IF((IF(E1*A1*A1=1,"ON","OFF"))="ON",1,0))*DB56)+((IF((IF(F1*A1*A1=1,"ON","OFF"))="ON",1,0))*DJ56)))) -> 85 | DS27: S(trf)
A28: 15 | B28: 0 | C28: 1 | D28: 0 | E28: 0 | F28: 1 | G28: 0 | H28: 109.5421327 | I28: 90 | J28: 19.54213265 | K28: 0 | L28: 0 | M28: 35 | N28: 0 | O28: 0 | P28: 0 | Q28: 0 | R28: 0 | S28: 0 | T28: 0 | U28: 0 | V28: 84 | W28: 108 | X28: =(((U1*T1)*SIN(2*PI()*(1*(V1/50000*(ROW()-1))+W1/360)))) -> 45.36564399 | Y28: -16.49568955 | Z28: 1 | BW28: =BW30 -> 1 | BX28: =BW35 -> 1 | BY28: =BX28 -> 1 | BZ28: =BW35 -> 1 | CA28: =BW35 -> 1 | CB28: =CA28 -> 1 | CC28: 1 | CD28: 1 | CE28: 1 | CF28: 1 | CG28: 1 | CH28: 1 | CI28: 1 | DS28: =-(IF(DT29*100=100,1-2+CQ34/CQ36-1,0)) -> 0
A29: 16 | B29: 0 | C29: 1 | D29: 0 | E29: 0 | F29: 0 | G29: 1 | H29: 109.5421327 | I29: 90 | J29: 19.54213265 | K29: 0 | L29: 0 | M29: 35 | N29: 0 | O29: 0 | P29: 0 | Q29: 0 | R29: 0 | S29: 0 | T29: 0 | U29: 0 | W29: =W28-4 -> 104 | X29: =(((U1*T1)*SIN(2*PI()*(1*(V1/50000*(ROW()-1))+W1/360)))) -> 47.02879691 | Y29: -15.79210378 | Z29: 1 | BW29: =BW30 -> 1 | BX29: =BX31 -> 5 | BY29: =BX29 -> 5 | BZ29: =BY29 -> 5 | CA29: 5 | CB29: 5 | CC29: 5 | CD29: 5 | CE29: 5 | CF29: 5 | CG29: 5 | CH29: 5 | CI29: 5 | DS29: =((IF((($CQ$36/$CQ$34)*100)>=W27,1,0))+((IF((IF((($CQ$36/$CQ$34)*100)>=W27,1,0))=0,(IF((($CQ$36/$CQ$34)*100)>=W28,1,0))*(($CQ$36/$CQ$34)*100),0))*100)) -> 0 | DT29: =IF(DS29=0,0,IF(DS29=1,1,DS29/100)) -> 0
A30: 17 | B30: 0 | C30: 0 | D30: 1 | E30: 1 | F30: 0 | G30: 0 | H30: 109.5421327 | I30: 60 | J30: 49.54213265 | K30: 0 | L30: 0 | M30: 35 | N30: 0 | O30: 0 | P30: 0 | Q30: 0 | R30: 0 | S30: 0 | T30: 0 | U30: 0 | X30: =(((U1*T1)*SIN(2*PI()*(1*(V1/50000*(ROW()-1))+W1/360)))) -> 48.69009322 | Y30: -15.08789457 | Z30: 1 | AM30: =IF((O12*(IF((IF(N1=0,"MANUAL CONTROL","AUTO CONTROL"))="MANUAL CONTROL",0,1))*G1*(IF((IF(N1=0,"MANUAL CONTROL","AUTO CONTROL"))="MANUAL CONTROL",0,1))+(IF((IF((((A1*(A1*5))*(G1*(G1*3))+(N1*(N1*1)))*(IF(((A1*(A1*5))*(G1*(G1*3))+(N1*(N1*1)))<15,0,1)))=0,"PFC RELAY OFF",IF((((A1*(A1*5))*(G1*(G1*3))+(N1*(N1*1)))*(IF(((A1*(A1*5))*(G1*(G1*3))+(N1*(N1*1)))<15,0,1)))=16,"PFC RELAY ON AUTO","PFC RELAY ON MANUAL")))="PFC RELAY ON MANUAL",99,0)))=1,"A1",IF(((O12*(IF((IF(N1=0,"MANUAL CONTROL","AUTO CONTROL"))="MANUAL CONTROL",0,1))*G1*(IF((IF(N1=0,"MANUAL CONTROL","AUTO CONTROL"))="MANUAL CONTROL",0,1))+(IF((IF((((A1*(A1*5))*(G1*(G1*3))+(N1*(N1*1)))*(IF(((A1*(A1*5))*(G1*(G1*3))+(N1*(N1*1)))<15,0,1)))=0,"PFC RELAY OFF",IF((((A1*(A1*5))*(G1*(G1*3))+(N1*(N1*1)))*(IF(((A1*(A1*5))*(G1*(G1*3))+(N1*(N1*1)))<15,0,1)))=16,"PFC RELAY ON AUTO","PFC RELAY ON MANUAL")))="PFC RELAY ON MANUAL",99,0)))*(O12*G1*A1))>90,"M1"," 1")) -> 1 | AP30: =IF((P12*(IF((IF(N1=0,"MANUAL CONTROL","AUTO CONTROL"))="MANUAL CONTROL",0,1))*G1*(IF((IF(N1=0,"MANUAL CONTROL","AUTO CONTROL"))="MANUAL CONTROL",0,1))+(IF((IF((((A1*(A1*5))*(G1*(G1*3))+(N1*(N1*1)))*(IF(((A1*(A1*5))*(G1*(G1*3))+(N1*(N1*1)))<15,0,1)))=0,"PFC RELAY OFF",IF((((A1*(A1*5))*(G1*(G1*3))+(N1*(N1*1)))*(IF(((A1*(A1*5))*(G1*(G1*3))+(N1*(N1*1)))<15,0,1)))=16,"PFC RELAY ON AUTO","PFC RELAY ON MANUAL")))="PFC RELAY ON MANUAL",99,0)))=1,"A2",IF(((P12*(IF((IF(N1=0,"MANUAL CONTROL","AUTO CONTROL"))="MANUAL CONTROL",0,1))*G1*(IF((IF(N1=0,"MANUAL CONTROL","AUTO CONTROL"))="MANUAL CONTROL",0,1))+(IF((IF((((A1*(A1*5))*(G1*(G1*3))+(N1*(N1*1)))*(IF(((A1*(A1*5))*(G1*(G1*3))+(N1*(N1*1)))<15,0,1)))=0,"PFC RELAY OFF",IF((((A1*(A1*5))*(G1*(G1*3))+(N1*(N1*1)))*(IF(((A1*(A1*5))*(G1*(G1*3))+(N1*(N1*1)))<15,0,1)))=16,"PFC RELAY ON AUTO","PFC RELAY ON MANUAL")))="PFC RELAY ON MANUAL",99,0)))*(P12*G1*A1))>90,"M2"," 2")) -> A2 | AS30: =IF((Q12*(IF((IF(N1=0,"MANUAL CONTROL","AUTO CONTROL"))="MANUAL CONTROL",0,1))*G1*(IF((IF(N1=0,"MANUAL CONTROL","AUTO CONTROL"))="MANUAL CONTROL",0,1))+(IF((IF((((A1*(A1*5))*(G1*(G1*3))+(N1*(N1*1)))*(IF(((A1*(A1*5))*(G1*(G1*3))+(N1*(N1*1)))<15,0,1)))=0,"PFC RELAY OFF",IF((((A1*(A1*5))*(G1*(G1*3))+(N1*(N1*1)))*(IF(((A1*(A1*5))*(G1*(G1*3))+(N1*(N1*1)))<15,0,1)))=16,"PFC RELAY ON AUTO","PFC RELAY ON MANUAL")))="PFC RELAY ON MANUAL",99,0)))=1,"A3",IF(((Q12*(IF((IF(N1=0,"MANUAL CONTROL","AUTO CONTROL"))="MANUAL CONTROL",0,1))*G1*(IF((IF(N1=0,"MANUAL CONTROL","AUTO CONTROL"))="MANUAL CONTROL",0,1))+(IF((IF((((A1*(A1*5))*(G1*(G1*3))+(N1*(N1*1)))*(IF(((A1*(A1*5))*(G1*(G1*3))+(N1*(N1*1)))<15,0,1)))=0,"PFC RELAY OFF",IF((((A1*(A1*5))*(G1*(G1*3))+(N1*(N1*1)))*(IF(((A1*(A1*5))*(G1*(G1*3))+(N1*(N1*1)))<15,0,1)))=16,"PFC RELAY ON AUTO","PFC RELAY ON MANUAL")))="PFC RELAY ON MANUAL",99,0)))*(Q12*G1*A1))>90,"M3"," 3")) -> A3 | AV30: =IF((R12*(IF((IF(N1=0,"MANUAL CONTROL","AUTO CONTROL"))="MANUAL CONTROL",0,1))*G1*(IF((IF(N1=0,"MANUAL CONTROL","AUTO CONTROL"))="MANUAL CONTROL",0,1))+(IF((IF((((A1*(A1*5))*(G1*(G1*3))+(N1*(N1*1)))*(IF(((A1*(A1*5))*(G1*(G1*3))+(N1*(N1*1)))<15,0,1)))=0,"PFC RELAY OFF",IF((((A1*(A1*5))*(G1*(G1*3))+(N1*(N1*1)))*(IF(((A1*(A1*5))*(G1*(G1*3))+(N1*(N1*1)))<15,0,1)))=16,"PFC RELAY ON AUTO","PFC RELAY ON MANUAL")))="PFC RELAY ON MANUAL",99,0)))=1,"A4",IF(((R12*(IF((IF(N1=0,"MANUAL CONTROL","AUTO CONTROL"))="MANUAL CONTROL",0,1))*G1*(IF((IF(N1=0,"MANUAL CONTROL","AUTO CONTROL"))="MANUAL CONTROL",0,1))+(IF((IF((((A1*(A1*5))*(G1*(G1*3))+(N1*(N1*1)))*(IF(((A1*(A1*5))*(G1*(G1*3))+(N1*(N1*1)))<15,0,1)))=0,"PFC RELAY OFF",IF((((A1*(A1*5))*(G1*(G1*3))+(N1*(N1*1)))*(IF(((A1*(A1*5))*(G1*(G1*3))+(N1*(N1*1)))<15,0,1)))=16,"PFC RELAY ON AUTO","PFC RELAY ON MANUAL")))="PFC RELAY ON MANUAL",99,0)))*(R12*G1*A1))>90,"M4"," 4")) -> 4 | AY30: =IF((S12*(IF((IF(N1=0,"MANUAL CONTROL","AUTO CONTROL"))="MANUAL CONTROL",0,1))*G1*(IF((IF(N1=0,"MANUAL CONTROL","AUTO CONTROL"))="MANUAL CONTROL",0,1))+(IF((IF((((A1*(A1*5))*(G1*(G1*3))+(N1*(N1*1)))*(IF(((A1*(A1*5))*(G1*(G1*3))+(N1*(N1*1)))<15,0,1)))=0,"PFC RELAY OFF",IF((((A1*(A1*5))*(G1*(G1*3))+(N1*(N1*1)))*(IF(((A1*(A1*5))*(G1*(G1*3))+(N1*(N1*1)))<15,0,1)))=16,"PFC RELAY ON AUTO","PFC RELAY ON MANUAL")))="PFC RELAY ON MANUAL",99,0)))=1,"A5",IF(((S12*(IF((IF(N1=0,"MANUAL CONTROL","AUTO CONTROL"))="MANUAL CONTROL",0,1))*G1*(IF((IF(N1=0,"MANUAL CONTROL","AUTO CONTROL"))="MANUAL CONTROL",0,1))+(IF((IF((((A1*(A1*5))*(G1*(G1*3))+(N1*(N1*1)))*(IF(((A1*(A1*5))*(G1*(G1*3))+(N1*(N1*1)))<15,0,1)))=0,"PFC RELAY OFF",IF((((A1*(A1*5))*(G1*(G1*3))+(N1*(N1*1)))*(IF(((A1*(A1*5))*(G1*(G1*3))+(N1*(N1*1)))<15,0,1)))=16,"PFC RELAY ON AUTO","PFC RELAY ON MANUAL")))="PFC RELAY ON MANUAL",99,0)))*(S12*G1*A1))>90,"M5"," 5")) -> A5 | BB30: =IF((T12*(IF((IF(N1=0,"MANUAL CONTROL","AUTO CONTROL"))="MANUAL CONTROL",0,1))*G1*(IF((IF(N1=0,"MANUAL CONTROL","AUTO CONTROL"))="MANUAL CONTROL",0,1))+(IF((IF((((A1*(A1*5))*(G1*(G1*3))+(N1*(N1*1)))*(IF(((A1*(A1*5))*(G1*(G1*3))+(N1*(N1*1)))<15,0,1)))=0,"PFC RELAY OFF",IF((((A1*(A1*5))*(G1*(G1*3))+(N1*(N1*1)))*(IF(((A1*(A1*5))*(G1*(G1*3))+(N1*(N1*1)))<15,0,1)))=16,"PFC RELAY ON AUTO","PFC RELAY ON MANUAL")))="PFC RELAY ON MANUAL",99,0)))=1,"A6",IF(((T12*(IF((IF(N1=0,"MANUAL CONTROL","AUTO CONTROL"))="MANUAL CONTROL",0,1))*G1*(IF((IF(N1=0,"MANUAL CONTROL","AUTO CONTROL"))="MANUAL CONTROL",0,1))+(IF((IF((((A1*(A1*5))*(G1*(G1*3))+(N1*(N1*1)))*(IF(((A1*(A1*5))*(G1*(G1*3))+(N1*(N1*1)))<15,0,1)))=0,"PFC RELAY OFF",IF((((A1*(A1*5))*(G1*(G1*3))+(N1*(N1*1)))*(IF(((A1*(A1*5))*(G1*(G1*3))+(N1*(N1*1)))<15,0,1)))=16,"PFC RELAY ON AUTO","PFC RELAY ON MANUAL")))="PFC RELAY ON MANUAL",99,0)))*(T12*G1*A1))>90,"M6"," 6")) -> 6 | BH30: 0 | BI30: 0 | BJ30: 0 | BK30: =IF(0<((AU39)*100/(AU37)),0,((AU39)*100/(AU37))) -> 0 | BL30: 0 | BM30: 0 | BW30: =BW35 -> 1 | BX30: =BX31 -> 5 | CA30: =IF(CC30>0,"<<---"," ") -> <<--- | CC30: =(((IF((IF(B1*A1*A1=1,"ON","OFF"))="ON",1,0))*CD50)+((IF((IF(C1*A1*A1=1,"ON","OFF"))="ON",1,0))*CL50)+((IF((IF(D1*A1*A1=1,"ON","OFF"))="ON",1,0))*CT50)+((IF((IF(E1*A1*A1=1,"ON","OFF"))="ON",1,0))*DB50)+((IF((IF(F1*A1*A1=1,"ON","OFF"))="ON",1,0))*DJ50))*N12 -> 260 | DS30: =((IF((($CQ$36/$CQ$34)*100)>=W28,1,0))+((IF((IF((($CQ$36/$CQ$34)*100)>=W28,1,0))=0,(IF((($CQ$36/$CQ$34)*100)>=W29,1,0))*(($CQ$36/$CQ$34)*100),0))*100)) -> 0 | DT30: =IF(DS30=0,0,IF(DS30=1,1,DS30/100)) -> 0
A31: 18 | B31: 0 | C31: 0 | D31: 1 | E31: 0 | F31: 1 | G31: 0 | H31: 109.5421327 | I31: 100 | J31: 9.542132653 | K31: 0 | L31: 0 | M31: 35 | N31: 0 | O31: 0 | P31: 0 | Q31: 0 | R31: 0 | S31: 0 | T31: 0 | U31: 0 | W31: 100 | X31: =(((U1*T1)*SIN(2*PI()*(1*(V1/50000*(ROW()-1))+W1/360)))) -> 50.34946732 | Y31: -14.38308971 | Z31: 1 | BH31: 0 | BI31: =((AU41)*100/(AU37)) -> 31.07388563 | BJ31: 0 | BK31: =((AU39)*100/(AU37)) -> 95.04953252 | BL31: =BK31 -> 95.04953252 | BM31: =BI31 -> 31.07388563 | BX31: =BX34 -> 5 | DS31: =((IF((($CQ$36/$CQ$34)*100)>=W29,1,0))+((IF((IF((($CQ$36/$CQ$34)*100)>=W29,1,0))=0,(IF((($CQ$36/$CQ$34)*100)>=W31,1,0))*(($CQ$36/$CQ$34)*100),0))*100)) -> 0 | DT31: =IF(DS31=0,0,IF(DS31=1,1,DS31/100)) -> 0
A32: 19 | B32: 0 | C32: 0 | D32: 1 | E32: 0 | F32: 0 | G32: 1 | H32: 109.5421327 | I32: 100 | J32: 9.542132653 | K32: 0 | L32: 0 | M32: 35 | N32: 0 | O32: 0 | P32: 0 | Q32: 0 | R32: 0 | S32: 0 | T32: 0 | U32: 0 | W32: 96 | X32: =(((U1*T1)*SIN(2*PI()*(1*(V1/50000*(ROW()-1))+W1/360)))) -> 52.00685371 | Y32: -13.67771703 | Z32: 1 | BW32: =A1 -> 1 | BX32: =((BW32+(IF(BW32=1,0,1))+(IF(SUM(CF42:DL45)=0,1,12))+((IF(BW32=1,0,1))*(IF(SUM(CF42:DL45)=0,1,12))))^2)+(IF(BX38>0,0,1)) -> 169 | BY32: =BW32 -> 1 | CJ32: U(sec) | CP32: : | CQ32: 400 | CW32: 50
A33: 20 | B33: 0 | C33: 0 | D33: 0 | E33: 1 | F33: 1 | G33: 0 | H33: 109.5421327 | I33: 120 | J33: 10.45786735 | K33: 0 | L33: 0 | M33: 35 | N33: 0 | O33: 0 | P33: 0 | Q33: 0 | R33: 0 | S33: 0 | T33: 0 | U33: 0 | W33: 92 | X33: =(((U1*T1)*SIN(2*PI()*(1*(V1/50000*(ROW()-1))+W1/360)))) -> 53.66218697 | Y33: -12.97180437 | Z33: 1 | BW33: =A1 -> 1 | BX33: =BX32 -> 169 | DS33: =((IF((($CQ$36/$CQ$34)*100)>=W31,1,0))+((IF((IF((($CQ$36/$CQ$34)*100)>=W31,1,0))=0,(IF((($CQ$36/$CQ$34)*100)>=W32,1,0))*(($CQ$36/$CQ$34)*100),0))*100)) -> 0 | DT33: =IF(DS33=0,0,IF(DS33=1,1,DS33/100)) -> 0
A34: 21 | B34: 0 | C34: 0 | D34: 0 | E34: 1 | F34: 0 | G34: 1 | H34: 109.5421327 | I34: 120 | J34: 10.45786735 | K34: 0 | L34: 0 | M34: 35 | N34: 0 | O34: 0 | P34: 0 | Q34: 0 | R34: 0 | S34: 0 | T34: 0 | U34: 0 | W34: 88 | X34: =(((U1*T1)*SIN(2*PI()*(1*(V1/50000*(ROW()-1))+W1/360)))) -> 55.31540173 | Y34: -12.26537962 | Z34: 1 | BX34: =BX35 -> 5 | CJ34: S(trf) | CP34: : | CQ34: =IF(DF34>0,(B10*0+DF34),(DF34*0+B10)) -> 400 | CX34: [ Alternative | DM34: ] | DS34: 0 | DT34: 0
A35: 22 | B35: 0 | C35: 0 | D35: 0 | E35: 0 | F35: 1 | G35: 1 | H35: 109.5421327 | I35: 160 | J35: 50.45786735 | K35: 0 | L35: 0 | M35: 35 | N35: 0 | O35: 0 | P35: 0 | Q35: 0 | R35: 0 | S35: 0 | T35: 0 | U35: 0 | W35: 84 | X35: =(((U1*T1)*SIN(2*PI()*(1*(V1/50000*(ROW()-1))+W1/360)))) -> 56.96643273 | Y35: -11.55847064 | Z35: 1 | BW35: =IF((BP40+BZ40)=0,0,1) -> 1 | BX35: =BX36 -> 5 | DS35: 0 | DT35: 0
A36: 23 | B36: 1 | C36: 1 | D36: 1 | E36: 0 | F36: 0 | G36: 0 | H36: 109.5421327 | I36: 35 | J36: 74.54213265 | K36: 0 | L36: 0 | M36: 35 | N36: 0 | O36: 0 | P36: 0 | Q36: 0 | R36: 0 | S36: 0 | T36: 0 | U36: 0 | W36: 80 | X36: =(((U1*T1)*SIN(2*PI()*(1*(V1/50000*(ROW()-1))+W1/360)))) -> 58.6152148 | Y36: -10.85110536 | Z36: 1 | BX36: =BX37 -> 5 | CA36: =IF(AU41=0,0,1) -> 1 | CJ36: S(load) | CP36: : | CQ36: =SQRT((((IF((IF(B1*A1*A1=1,"ON","OFF"))="ON",1,0))*CD50)+((IF((IF(C1*A1*A1=1,"ON","OFF"))="ON",1,0))*CL50)+((IF((IF(D1*A1*A1=1,"ON","OFF"))="ON",1,0))*CT50)+((IF((IF(E1*A1*A1=1,"ON","OFF"))="ON",1,0))*DB50)+((IF((IF(F1*A1*A1=1,"ON","OFF"))="ON",1,0))*DJ50))^2+(((-AH55*(IF((IF(((O12*G1*A1)*A1)=1,"ON","OFF"))="ON",1,0))-AO55*(IF((IF(((P12*G1*A1)*A1)=1,"ON","OFF"))="ON",1,0))-AV55*(IF((IF(((Q12*G1*A1)*A1)=1,"ON","OFF"))="ON",1,0))-BC55*(IF((IF(((R12*G1*A1)*A1)=1,"ON","OFF"))="ON",1,0))-BJ55*(IF((IF(((S12*G1*A1)*A1)=1,"ON","OFF"))="ON",1,0))-BQ55*(IF((IF(((T12*G1*A1)*A1)=1,"ON","OFF"))="ON",1,0)))*G1)+(((IF((IF(B1*A1*A1=1,"ON","OFF"))="ON",1,0))*CD56)+((IF((IF(C1*A1*A1=1,"ON","OFF"))="ON",1,0))*CL56)+((IF((IF(D1*A1*A1=1,"ON","OFF"))="ON",1,0))*CT56)+((IF((IF(E1*A1*A1=1,"ON","OFF"))="ON",1,0))*DB56)+((IF((IF(F1*A1*A1=1,"ON","OFF"))="ON",1,0))*DJ56)))^2) -> 273.5415873 | DS36: 0 | DT36: 0
A37: 24 | B37: 1 | C37: 1 | D37: 0 | E37: 1 | F37: 0 | G37: 0 | H37: 109.5421327 | I37: 55 | J37: 54.54213265 | K37: 0 | L37: 0 | M37: 35 | N37: 0 | O37: 0 | P37: 0 | Q37: 0 | R37: 0 | S37: 0 | T37: 0 | U37: 0 | W37: 76 | X37: =(((U1*T1)*SIN(2*PI()*(1*(V1/50000*(ROW()-1))+W1/360)))) -> 60.26168284 | Y37: -10.14331169 | Z37: 1 | AM37: =CQ32*A1 -> 400 | AU37: =SQRT((((IF((IF(B1*A1*A1=1,"ON","OFF"))="ON",1,0))*CD50)+((IF((IF(C1*A1*A1=1,"ON","OFF"))="ON",1,0))*CL50)+((IF((IF(D1*A1*A1=1,"ON","OFF"))="ON",1,0))*CT50)+((IF((IF(E1*A1*A1=1,"ON","OFF"))="ON",1,0))*DB50)+((IF((IF(F1*A1*A1=1,"ON","OFF"))="ON",1,0))*DJ50))^2+(((-AH55*(IF((IF(((O12*G1*A1)*A1)=1,"ON","OFF"))="ON",1,0))-AO55*(IF((IF(((P12*G1*A1)*A1)=1,"ON","OFF"))="ON",1,0))-AV55*(IF((IF(((Q12*G1*A1)*A1)=1,"ON","OFF"))="ON",1,0))-BC55*(IF((IF(((R12*G1*A1)*A1)=1,"ON","OFF"))="ON",1,0))-BJ55*(IF((IF(((S12*G1*A1)*A1)=1,"ON","OFF"))="ON",1,0))-BQ55*(IF((IF(((T12*G1*A1)*A1)=1,"ON","OFF"))="ON",1,0)))*G1)+(((IF((IF(B1*A1*A1=1,"ON","OFF"))="ON",1,0))*CD56)+((IF((IF(C1*A1*A1=1,"ON","OFF"))="ON",1,0))*CL56)+((IF((IF(D1*A1*A1=1,"ON","OFF"))="ON",1,0))*CT56)+((IF((IF(E1*A1*A1=1,"ON","OFF"))="ON",1,0))*DB56)+((IF((IF(F1*A1*A1=1,"ON","OFF"))="ON",1,0))*DJ56)))^2) -> 273.5415873 | BX37: =BX38 -> 5 | DS37: 0 | DT37: 0
A38: 25 | B38: 1 | C38: 1 | D38: 0 | E38: 0 | F38: 1 | G38: 0 | H38: 109.5421327 | I38: 95 | J38: 14.54213265 | K38: 0 | L38: 0 | M38: 35 | N38: 0 | O38: 0 | P38: 0 | Q38: 0 | R38: 0 | S38: 0 | T38: 0 | U38: 0 | X38: =(((U1*T1)*SIN(2*PI()*(1*(V1/50000*(ROW()-1))+W1/360)))) -> 61.90577185 | Y38: -9.435117588 | Z38: 1 | BX38: =CE40+CM40+CU40+DC40+DK40 -> 5 | CF38: =CM40+CU40+DC40+DK40 -> 4 | CN38: =CU40+DC40+DK40 -> 3 | CV38: =DC40+DK40 -> 2 | DD38: =DK40 -> 1 | DS38: 0 | DT38: 0
A39: 26 | B39: 1 | C39: 1 | D39: 0 | E39: 0 | F39: 0 | G39: 1 | H39: 109.5421327 | I39: 95 | J39: 14.54213265 | K39: 0 | L39: 0 | M39: 35 | N39: 0 | O39: 0 | P39: 0 | Q39: 0 | R39: 0 | S39: 0 | T39: 0 | U39: 0 | W39: 72 | X39: =(((U1*T1)*SIN(2*PI()*(1*(V1/50000*(ROW()-1))+W1/360)))) -> 63.54741692 | Y39: -8.726551 | Z39: 1 | AK39: =IF(((IF((IF((T12*(IF((IF(N1=0,"MANUAL CONTROL","AUTO CONTROL"))="MANUAL CONTROL",0,1))*G1*(IF((IF(N1=0,"MANUAL CONTROL","AUTO CONTROL"))="MANUAL CONTROL",0,1))+(IF((IF((((A1*(A1*5))*(G1*(G1*3))+(N1*(N1*1)))*(IF(((A1*(A1*5))*(G1*(G1*3))+(N1*(N1*1)))<15,0,1)))=0,"PFC RELAY OFF",IF((((A1*(A1*5))*(G1*(G1*3))+(N1*(N1*1)))*(IF(((A1*(A1*5))*(G1*(G1*3))+(N1*(N1*1)))<15,0,1)))=16,"PFC RELAY ON AUTO","PFC RELAY ON MANUAL")))="PFC RELAY ON MANUAL",99,0)))=1,"A6",IF(((T12*(IF((IF(N1=0,"MANUAL CONTROL","AUTO CONTROL"))="MANUAL CONTROL",0,1))*G1*(IF((IF(N1=0,"MANUAL CONTROL","AUTO CONTROL"))="MANUAL CONTROL",0,1))+(IF((IF((((A1*(A1*5))*(G1*(G1*3))+(N1*(N1*1)))*(IF(((A1*(A1*5))*(G1*(G1*3))+(N1*(N1*1)))<15,0,1)))=0,"PFC RELAY OFF",IF((((A1*(A1*5))*(G1*(G1*3))+(N1*(N1*1)))*(IF(((A1*(A1*5))*(G1*(G1*3))+(N1*(N1*1)))<15,0,1)))=16,"PFC RELAY ON AUTO","PFC RELAY ON MANUAL")))="PFC RELAY ON MANUAL",99,0)))*(T12*G1*A1))>90,"M6"," 6")))=" 6",1,0)*29)+(IF((IF((((A1*(A1*5))*(G1*(G1*3))+(N1*(N1*1)))*(IF(((A1*(A1*5))*(G1*(G1*3))+(N1*(N1*1)))<15,0,1)))=0,"PFC RELAY OFF",IF((((A1*(A1*5))*(G1*(G1*3))+(N1*(N1*1)))*(IF(((A1*(A1*5))*(G1*(G1*3))+(N1*(N1*1)))<15,0,1)))=16,"PFC RELAY ON AUTO","PFC RELAY ON MANUAL")))="A6",1,0)*59)+(IF((IF((T12*(IF((IF(N1=0,"MANUAL CONTROL","AUTO CONTROL"))="MANUAL CONTROL",0,1))*G1*(IF((IF(N1=0,"MANUAL CONTROL","AUTO CONTROL"))="MANUAL CONTROL",0,1))+(IF((IF((((A1*(A1*5))*(G1*(G1*3))+(N1*(N1*1)))*(IF(((A1*(A1*5))*(G1*(G1*3))+(N1*(N1*1)))<15,0,1)))=0,"PFC RELAY OFF",IF((((A1*(A1*5))*(G1*(G1*3))+(N1*(N1*1)))*(IF(((A1*(A1*5))*(G1*(G1*3))+(N1*(N1*1)))<15,0,1)))=16,"PFC RELAY ON AUTO","PFC RELAY ON MANUAL")))="PFC RELAY ON MANUAL",99,0)))=1,"A6",IF(((T12*(IF((IF(N1=0,"MANUAL CONTROL","AUTO CONTROL"))="MANUAL CONTROL",0,1))*G1*(IF((IF(N1=0,"MANUAL CONTROL","AUTO CONTROL"))="MANUAL CONTROL",0,1))+(IF((IF((((A1*(A1*5))*(G1*(G1*3))+(N1*(N1*1)))*(IF(((A1*(A1*5))*(G1*(G1*3))+(N1*(N1*1)))<15,0,1)))=0,"PFC RELAY OFF",IF((((A1*(A1*5))*(G1*(G1*3))+(N1*(N1*1)))*(IF(((A1*(A1*5))*(G1*(G1*3))+(N1*(N1*1)))<15,0,1)))=16,"PFC RELAY ON AUTO","PFC RELAY ON MANUAL")))="PFC RELAY ON MANUAL",99,0)))*(T12*G1*A1))>90,"M6"," 6")))="M6",1,0)*99))=29,"K6",IF(((IF((IF((T12*(IF((IF(N1=0,"MANUAL CONTROL","AUTO CONTROL"))="MANUAL CONTROL",0,1))*G1*(IF((IF(N1=0,"MANUAL CONTROL","AUTO CONTROL"))="MANUAL CONTROL",0,1))+(IF((IF((((A1*(A1*5))*(G1*(G1*3))+(N1*(N1*1)))*(IF(((A1*(A1*5))*(G1*(G1*3))+(N1*(N1*1)))<15,0,1)))=0,"PFC RELAY OFF",IF((((A1*(A1*5))*(G1*(G1*3))+(N1*(N1*1)))*(IF(((A1*(A1*5))*(G1*(G1*3))+(N1*(N1*1)))<15,0,1)))=16,"PFC RELAY ON AUTO","PFC RELAY ON MANUAL")))="PFC RELAY ON MANUAL",99,0)))=1,"A6",IF(((T12*(IF((IF(N1=0,"MANUAL CONTROL","AUTO CONTROL"))="MANUAL CONTROL",0,1))*G1*(IF((IF(N1=0,"MANUAL CONTROL","AUTO CONTROL"))="MANUAL CONTROL",0,1))+(IF((IF((((A1*(A1*5))*(G1*(G1*3))+(N1*(N1*1)))*(IF(((A1*(A1*5))*(G1*(G1*3))+(N1*(N1*1)))<15,0,1)))=0,"PFC RELAY OFF",IF((((A1*(A1*5))*(G1*(G1*3))+(N1*(N1*1)))*(IF(((A1*(A1*5))*(G1*(G1*3))+(N1*(N1*1)))<15,0,1)))=16,"PFC RELAY ON AUTO","PFC RELAY ON MANUAL")))="PFC RELAY ON MANUAL",99,0)))*(T12*G1*A1))>90,"M6"," 6")))=" 6",1,0)*29)+(IF((IF((((A1*(A1*5))*(G1*(G1*3))+(N1*(N1*1)))*(IF(((A1*(A1*5))*(G1*(G1*3))+(N1*(N1*1)))<15,0,1)))=0,"PFC RELAY OFF",IF((((A1*(A1*5))*(G1*(G1*3))+(N1*(N1*1)))*(IF(((A1*(A1*5))*(G1*(G1*3))+(N1*(N1*1)))<15,0,1)))=16,"PFC RELAY ON AUTO","PFC RELAY ON MANUAL")))="A6",1,0)*59)+(IF((IF((T12*(IF((IF(N1=0,"MANUAL CONTROL","AUTO CONTROL"))="MANUAL CONTROL",0,1))*G1*(IF((IF(N1=0,"MANUAL CONTROL","AUTO CONTROL"))="MANUAL CONTROL",0,1))+(IF((IF((((A1*(A1*5))*(G1*(G1*3))+(N1*(N1*1)))*(IF(((A1*(A1*5))*(G1*(G1*3))+(N1*(N1*1)))<15,0,1)))=0,"PFC RELAY OFF",IF((((A1*(A1*5))*(G1*(G1*3))+(N1*(N1*1)))*(IF(((A1*(A1*5))*(G1*(G1*3))+(N1*(N1*1)))<15,0,1)))=16,"PFC RELAY ON AUTO","PFC RELAY ON MANUAL")))="PFC RELAY ON MANUAL",99,0)))=1,"A6",IF(((T12*(IF((IF(N1=0,"MANUAL CONTROL","AUTO CONTROL"))="MANUAL CONTROL",0,1))*G1*(IF((IF(N1=0,"MANUAL CONTROL","AUTO CONTROL"))="MANUAL CONTROL",0,1))+(IF((IF((((A1*(A1*5))*(G1*(G1*3))+(N1*(N1*1)))*(IF(((A1*(A1*5))*(G1*(G1*3))+(N1*(N1*1)))<15,0,1)))=0,"PFC RELAY OFF",IF((((A1*(A1*5))*(G1*(G1*3))+(N1*(N1*1)))*(IF(((A1*(A1*5))*(G1*(G1*3))+(N1*(N1*1)))<15,0,1)))=16,"PFC RELAY ON AUTO","PFC RELAY ON MANUAL")))="PFC RELAY ON MANUAL",99,0)))*(T12*G1*A1))>90,"M6"," 6")))="M6",1,0)*99))=99," K6","K6 ")) -> K6 | AM39: =CW32*A1 -> 50 | AU39: =((IF((IF(B1*A1*A1=1,"ON","OFF"))="ON",1,0))*CD50)+((IF((IF(C1*A1*A1=1,"ON","OFF"))="ON",1,0))*CL50)+((IF((IF(D1*A1*A1=1,"ON","OFF"))="ON",1,0))*CT50)+((IF((IF(E1*A1*A1=1,"ON","OFF"))="ON",1,0))*DB50)+((IF((IF(F1*A1*A1=1,"ON","OFF"))="ON",1,0))*DJ50) -> 260 | BD39: k | BO39: =BO40*BO42 -> 6 | BW39: =BO39+BX39 -> 201 | BX39: =CF45+CN45+CV45+DD45+DL45 -> 195 | CE39: =IF(CF45>0,1,(IF(CE43>0,2,0)))+CN45+CV45+DD45+DL45 -> 173.5 | CF39: =BX39 -> 195 | CG39: =CN45+CV45+DD45+DL45 -> 172.5 | CM39: =IF(CN45>0,1,(IF(CM43>0,2,0)))+CV45+DD45+DL45 -> 143.5 | CN39: =CG39 -> 172.5 | CO39: =CV45+DD45+DL45 -> 142.5 | CU39: =IF(CV45>0,1,(IF(CU43>0,2,0)))+DD45+DL45 -> 102.25 | CV39: =CO39 -> 142.5 | CW39: =DD45+DL45 -> 101.25 | DC39: =IF(DD45>0,1,(IF(DC43>0,2,0)))+DL45 -> 53.5 | DD39: =CW39 -> 101.25 | DE39: =DL45 -> 52.5 | DK39: =IF(DL45>0,1,(IF(DK43>0,2,0))) -> 1 | DL39: =DE39 -> 52.5 | DS39: =((IF((($CQ$36/$CQ$34)*100)>=W37,1,0))+((IF((IF((($CQ$36/$CQ$34)*100)>=W37,1,0))=0,(IF((($CQ$36/$CQ$34)*100)>=W39,1,0))*(($CQ$36/$CQ$34)*100),0))*100)) -> 0 | DT39: =IF(DS39=0,0,IF(DS39=1,1,DS39/100)) -> 0
A40: 27 | B40: 1 | C40: 0 | D40: 1 | E40: 1 | F40: 0 | G40: 0 | H40: 109.5421327 | I40: 65 | J40: 44.54213265 | K40: 0 | L40: 0 | M40: 35 | N40: 0 | O40: 0 | P40: 0 | Q40: 0 | R40: 0 | S40: 0 | T40: 0 | U40: 0 | W40: 68 | X40: =(((U1*T1)*SIN(2*PI()*(1*(V1/50000*(ROW()-1))+W1/360)))) -> 65.18655326 | Y40: -8.017639903 | Z40: 1 | AK40: =IF(((IF((IF((S12*(IF((IF(N1=0,"MANUAL CONTROL","AUTO CONTROL"))="MANUAL CONTROL",0,1))*G1*(IF((IF(N1=0,"MANUAL CONTROL","AUTO CONTROL"))="MANUAL CONTROL",0,1))+(IF((IF((((A1*(A1*5))*(G1*(G1*3))+(N1*(N1*1)))*(IF(((A1*(A1*5))*(G1*(G1*3))+(N1*(N1*1)))<15,0,1)))=0,"PFC RELAY OFF",IF((((A1*(A1*5))*(G1*(G1*3))+(N1*(N1*1)))*(IF(((A1*(A1*5))*(G1*(G1*3))+(N1*(N1*1)))<15,0,1)))=16,"PFC RELAY ON AUTO","PFC RELAY ON MANUAL")))="PFC RELAY ON MANUAL",99,0)))=1,"A5",IF(((S12*(IF((IF(N1=0,"MANUAL CONTROL","AUTO CONTROL"))="MANUAL CONTROL",0,1))*G1*(IF((IF(N1=0,"MANUAL CONTROL","AUTO CONTROL"))="MANUAL CONTROL",0,1))+(IF((IF((((A1*(A1*5))*(G1*(G1*3))+(N1*(N1*1)))*(IF(((A1*(A1*5))*(G1*(G1*3))+(N1*(N1*1)))<15,0,1)))=0,"PFC RELAY OFF",IF((((A1*(A1*5))*(G1*(G1*3))+(N1*(N1*1)))*(IF(((A1*(A1*5))*(G1*(G1*3))+(N1*(N1*1)))<15,0,1)))=16,"PFC RELAY ON AUTO","PFC RELAY ON MANUAL")))="PFC RELAY ON MANUAL",99,0)))*(S12*G1*A1))>90,"M5"," 5")))=" 5",1,0)*29)+(IF((IF((S12*(IF((IF(N1=0,"MANUAL CONTROL","AUTO CONTROL"))="MANUAL CONTROL",0,1))*G1*(IF((IF(N1=0,"MANUAL CONTROL","AUTO CONTROL"))="MANUAL CONTROL",0,1))+(IF((IF((((A1*(A1*5))*(G1*(G1*3))+(N1*(N1*1)))*(IF(((A1*(A1*5))*(G1*(G1*3))+(N1*(N1*1)))<15,0,1)))=0,"PFC RELAY OFF",IF((((A1*(A1*5))*(G1*(G1*3))+(N1*(N1*1)))*(IF(((A1*(A1*5))*(G1*(G1*3))+(N1*(N1*1)))<15,0,1)))=16,"PFC RELAY ON AUTO","PFC RELAY ON MANUAL")))="PFC RELAY ON MANUAL",99,0)))=1,"A5",IF(((S12*(IF((IF(N1=0,"MANUAL CONTROL","AUTO CONTROL"))="MANUAL CONTROL",0,1))*G1*(IF((IF(N1=0,"MANUAL CONTROL","AUTO CONTROL"))="MANUAL CONTROL",0,1))+(IF((IF((((A1*(A1*5))*(G1*(G1*3))+(N1*(N1*1)))*(IF(((A1*(A1*5))*(G1*(G1*3))+(N1*(N1*1)))<15,0,1)))=0,"PFC RELAY OFF",IF((((A1*(A1*5))*(G1*(G1*3))+(N1*(N1*1)))*(IF(((A1*(A1*5))*(G1*(G1*3))+(N1*(N1*1)))<15,0,1)))=16,"PFC RELAY ON AUTO","PFC RELAY ON MANUAL")))="PFC RELAY ON MANUAL",99,0)))*(S12*G1*A1))>90,"M5"," 5")))="A5",1,0)*59)+(IF((IF((S12*(IF((IF(N1=0,"MANUAL CONTROL","AUTO CONTROL"))="MANUAL CONTROL",0,1))*G1*(IF((IF(N1=0,"MANUAL CONTROL","AUTO CONTROL"))="MANUAL CONTROL",0,1))+(IF((IF((((A1*(A1*5))*(G1*(G1*3))+(N1*(N1*1)))*(IF(((A1*(A1*5))*(G1*(G1*3))+(N1*(N1*1)))<15,0,1)))=0,"PFC RELAY OFF",IF((((A1*(A1*5))*(G1*(G1*3))+(N1*(N1*1)))*(IF(((A1*(A1*5))*(G1*(G1*3))+(N1*(N1*1)))<15,0,1)))=16,"PFC RELAY ON AUTO","PFC RELAY ON MANUAL")))="PFC RELAY ON MANUAL",99,0)))=1,"A5",IF(((S12*(IF((IF(N1=0,"MANUAL CONTROL","AUTO CONTROL"))="MANUAL CONTROL",0,1))*G1*(IF((IF(N1=0,"MANUAL CONTROL","AUTO CONTROL"))="MANUAL CONTROL",0,1))+(IF((IF((((A1*(A1*5))*(G1*(G1*3))+(N1*(N1*1)))*(IF(((A1*(A1*5))*(G1*(G1*3))+(N1*(N1*1)))<15,0,1)))=0,"PFC RELAY OFF",IF((((A1*(A1*5))*(G1*(G1*3))+(N1*(N1*1)))*(IF(((A1*(A1*5))*(G1*(G1*3))+(N1*(N1*1)))<15,0,1)))=16,"PFC RELAY ON AUTO","PFC RELAY ON MANUAL")))="PFC RELAY ON MANUAL",99,0)))*(S12*G1*A1))>90,"M5"," 5")))="M5",1,0)*99))=29,"K5",IF(((IF((IF((S12*(IF((IF(N1=0,"MANUAL CONTROL","AUTO CONTROL"))="MANUAL CONTROL",0,1))*G1*(IF((IF(N1=0,"MANUAL CONTROL","AUTO CONTROL"))="MANUAL CONTROL",0,1))+(IF((IF((((A1*(A1*5))*(G1*(G1*3))+(N1*(N1*1)))*(IF(((A1*(A1*5))*(G1*(G1*3))+(N1*(N1*1)))<15,0,1)))=0,"PFC RELAY OFF",IF((((A1*(A1*5))*(G1*(G1*3))+(N1*(N1*1)))*(IF(((A1*(A1*5))*(G1*(G1*3))+(N1*(N1*1)))<15,0,1)))=16,"PFC RELAY ON AUTO","PFC RELAY ON MANUAL")))="PFC RELAY ON MANUAL",99,0)))=1,"A5",IF(((S12*(IF((IF(N1=0,"MANUAL CONTROL","AUTO CONTROL"))="MANUAL CONTROL",0,1))*G1*(IF((IF(N1=0,"MANUAL CONTROL","AUTO CONTROL"))="MANUAL CONTROL",0,1))+(IF((IF((((A1*(A1*5))*(G1*(G1*3))+(N1*(N1*1)))*(IF(((A1*(A1*5))*(G1*(G1*3))+(N1*(N1*1)))<15,0,1)))=0,"PFC RELAY OFF",IF((((A1*(A1*5))*(G1*(G1*3))+(N1*(N1*1)))*(IF(((A1*(A1*5))*(G1*(G1*3))+(N1*(N1*1)))<15,0,1)))=16,"PFC RELAY ON AUTO","PFC RELAY ON MANUAL")))="PFC RELAY ON MANUAL",99,0)))*(S12*G1*A1))>90,"M5"," 5")))=" 5",1,0)*29)+(IF((IF((S12*(IF((IF(N1=0,"MANUAL CONTROL","AUTO CONTROL"))="MANUAL CONTROL",0,1))*G1*(IF((IF(N1=0,"MANUAL CONTROL","AUTO CONTROL"))="MANUAL CONTROL",0,1))+(IF((IF((((A1*(A1*5))*(G1*(G1*3))+(N1*(N1*1)))*(IF(((A1*(A1*5))*(G1*(G1*3))+(N1*(N1*1)))<15,0,1)))=0,"PFC RELAY OFF",IF((((A1*(A1*5))*(G1*(G1*3))+(N1*(N1*1)))*(IF(((A1*(A1*5))*(G1*(G1*3))+(N1*(N1*1)))<15,0,1)))=16,"PFC RELAY ON AUTO","PFC RELAY ON MANUAL")))="PFC RELAY ON MANUAL",99,0)))=1,"A5",IF(((S12*(IF((IF(N1=0,"MANUAL CONTROL","AUTO CONTROL"))="MANUAL CONTROL",0,1))*G1*(IF((IF(N1=0,"MANUAL CONTROL","AUTO CONTROL"))="MANUAL CONTROL",0,1))+(IF((IF((((A1*(A1*5))*(G1*(G1*3))+(N1*(N1*1)))*(IF(((A1*(A1*5))*(G1*(G1*3))+(N1*(N1*1)))<15,0,1)))=0,"PFC RELAY OFF",IF((((A1*(A1*5))*(G1*(G1*3))+(N1*(N1*1)))*(IF(((A1*(A1*5))*(G1*(G1*3))+(N1*(N1*1)))<15,0,1)))=16,"PFC RELAY ON AUTO","PFC RELAY ON MANUAL")))="PFC RELAY ON MANUAL",99,0)))*(S12*G1*A1))>90,"M5"," 5")))="A5",1,0)*59)+(IF((IF((S12*(IF((IF(N1=0,"MANUAL CONTROL","AUTO CONTROL"))="MANUAL CONTROL",0,1))*G1*(IF((IF(N1=0,"MANUAL CONTROL","AUTO CONTROL"))="MANUAL CONTROL",0,1))+(IF((IF((((A1*(A1*5))*(G1*(G1*3))+(N1*(N1*1)))*(IF(((A1*(A1*5))*(G1*(G1*3))+(N1*(N1*1)))<15,0,1)))=0,"PFC RELAY OFF",IF((((A1*(A1*5))*(G1*(G1*3))+(N1*(N1*1)))*(IF(((A1*(A1*5))*(G1*(G1*3))+(N1*(N1*1)))<15,0,1)))=16,"PFC RELAY ON AUTO","PFC RELAY ON MANUAL")))="PFC RELAY ON MANUAL",99,0)))=1,"A5",IF(((S12*(IF((IF(N1=0,"MANUAL CONTROL","AUTO CONTROL"))="MANUAL CONTROL",0,1))*G1*(IF((IF(N1=0,"MANUAL CONTROL","AUTO CONTROL"))="MANUAL CONTROL",0,1))+(IF((IF((((A1*(A1*5))*(G1*(G1*3))+(N1*(N1*1)))*(IF(((A1*(A1*5))*(G1*(G1*3))+(N1*(N1*1)))<15,0,1)))=0,"PFC RELAY OFF",IF((((A1*(A1*5))*(G1*(G1*3))+(N1*(N1*1)))*(IF(((A1*(A1*5))*(G1*(G1*3))+(N1*(N1*1)))<15,0,1)))=16,"PFC RELAY ON AUTO","PFC RELAY ON MANUAL")))="PFC RELAY ON MANUAL",99,0)))*(S12*G1*A1))>90,"M5"," 5")))="M5",1,0)*99))=99," K5","K5 ")) -> K5 | BD40: l | BO40: =BO45 -> 6 | BP40: =(-AH55*(IF((IF((AJ49*A1)=1,"ON","OFF"))="ON",1,0))-AO55*(IF((IF((AQ49*A1)=1,"ON","OFF"))="ON",1,0))-AV55*(IF((IF((AX49*A1)=1,"ON","OFF"))="ON",1,0))-BC55*(IF((IF((BE49*A1)=1,"ON","OFF"))="ON",1,0))-BJ55*(IF((IF((BL49*A1)=1,"ON","OFF"))="ON",1,0))-BQ55*(IF((IF((BS49*A1)=1,"ON","OFF"))="ON",1,0)))*G1 -> -110 | BU40: =IF(ABS(BP40)>0,"<--->"," ") -> <---> | BX40: =IF(ABS(BZ40)>0,"<--->"," ") -> <---> | BZ40: =(((IF((IF(B1*A1*A1=1,"ON","OFF"))="ON",1,0))*CD56)+((IF((IF(C1*A1*A1=1,"ON","OFF"))="ON",1,0))*CL56)+((IF((IF(D1*A1*A1=1,"ON","OFF"))="ON",1,0))*CT56)+((IF((IF(E1*A1*A1=1,"ON","OFF"))="ON",1,0))*DB56)+((IF((IF(F1*A1*A1=1,"ON","OFF"))="ON",1,0))*DJ56))*N12 -> 195 | CE40: =CE43 -> 1 | CF40: =CF45 -> 22.5 | CM40: =CM43 -> 1 | CN40: =CN45 -> 30 | CU40: =CU43 -> 1 | CV40: =CV45 -> 41.25 | DC40: =DC43 -> 1 | DD40: =DD45 -> 48.75 | DK40: =DK43 -> 1 | DL40: =DL45 -> 52.5
A41: 28 | B41: 1 | C41: 0 | D41: 1 | E41: 0 | F41: 1 | G41: 0 | H41: 109.5421327 | I41: 105 | J41: 4.542132653 | K41: 0 | L41: 0 | M41: 35 | N41: 0 | O41: 0 | P41: 0 | Q41: 0 | R41: 0 | S41: 0 | T41: 0 | U41: 0 | W41: 64 | X41: =(((U1*T1)*SIN(2*PI()*(1*(V1/50000*(ROW()-1))+W1/360)))) -> 66.82311614 | Y41: -7.308412283 | Z41: 1 | AK41: =IF(((IF((IF((R12*(IF((IF(N1=0,"MANUAL CONTROL","AUTO CONTROL"))="MANUAL CONTROL",0,1))*G1*(IF((IF(N1=0,"MANUAL CONTROL","AUTO CONTROL"))="MANUAL CONTROL",0,1))+(IF((IF((((A1*(A1*5))*(G1*(G1*3))+(N1*(N1*1)))*(IF(((A1*(A1*5))*(G1*(G1*3))+(N1*(N1*1)))<15,0,1)))=0,"PFC RELAY OFF",IF((((A1*(A1*5))*(G1*(G1*3))+(N1*(N1*1)))*(IF(((A1*(A1*5))*(G1*(G1*3))+(N1*(N1*1)))<15,0,1)))=16,"PFC RELAY ON AUTO","PFC RELAY ON MANUAL")))="PFC RELAY ON MANUAL",99,0)))=1,"A4",IF(((R12*(IF((IF(N1=0,"MANUAL CONTROL","AUTO CONTROL"))="MANUAL CONTROL",0,1))*G1*(IF((IF(N1=0,"MANUAL CONTROL","AUTO CONTROL"))="MANUAL CONTROL",0,1))+(IF((IF((((A1*(A1*5))*(G1*(G1*3))+(N1*(N1*1)))*(IF(((A1*(A1*5))*(G1*(G1*3))+(N1*(N1*1)))<15,0,1)))=0,"PFC RELAY OFF",IF((((A1*(A1*5))*(G1*(G1*3))+(N1*(N1*1)))*(IF(((A1*(A1*5))*(G1*(G1*3))+(N1*(N1*1)))<15,0,1)))=16,"PFC RELAY ON AUTO","PFC RELAY ON MANUAL")))="PFC RELAY ON MANUAL",99,0)))*(R12*G1*A1))>90,"M4"," 4")))=" 4",1,0)*29)+(IF((IF((R12*(IF((IF(N1=0,"MANUAL CONTROL","AUTO CONTROL"))="MANUAL CONTROL",0,1))*G1*(IF((IF(N1=0,"MANUAL CONTROL","AUTO CONTROL"))="MANUAL CONTROL",0,1))+(IF((IF((((A1*(A1*5))*(G1*(G1*3))+(N1*(N1*1)))*(IF(((A1*(A1*5))*(G1*(G1*3))+(N1*(N1*1)))<15,0,1)))=0,"PFC RELAY OFF",IF((((A1*(A1*5))*(G1*(G1*3))+(N1*(N1*1)))*(IF(((A1*(A1*5))*(G1*(G1*3))+(N1*(N1*1)))<15,0,1)))=16,"PFC RELAY ON AUTO","PFC RELAY ON MANUAL")))="PFC RELAY ON MANUAL",99,0)))=1,"A4",IF(((R12*(IF((IF(N1=0,"MANUAL CONTROL","AUTO CONTROL"))="MANUAL CONTROL",0,1))*G1*(IF((IF(N1=0,"MANUAL CONTROL","AUTO CONTROL"))="MANUAL CONTROL",0,1))+(IF((IF((((A1*(A1*5))*(G1*(G1*3))+(N1*(N1*1)))*(IF(((A1*(A1*5))*(G1*(G1*3))+(N1*(N1*1)))<15,0,1)))=0,"PFC RELAY OFF",IF((((A1*(A1*5))*(G1*(G1*3))+(N1*(N1*1)))*(IF(((A1*(A1*5))*(G1*(G1*3))+(N1*(N1*1)))<15,0,1)))=16,"PFC RELAY ON AUTO","PFC RELAY ON MANUAL")))="PFC RELAY ON MANUAL",99,0)))*(R12*G1*A1))>90,"M4"," 4")))="A4",1,0)*59)+(IF((IF((R12*(IF((IF(N1=0,"MANUAL CONTROL","AUTO CONTROL"))="MANUAL CONTROL",0,1))*G1*(IF((IF(N1=0,"MANUAL CONTROL","AUTO CONTROL"))="MANUAL CONTROL",0,1))+(IF((IF((((A1*(A1*5))*(G1*(G1*3))+(N1*(N1*1)))*(IF(((A1*(A1*5))*(G1*(G1*3))+(N1*(N1*1)))<15,0,1)))=0,"PFC RELAY OFF",IF((((A1*(A1*5))*(G1*(G1*3))+(N1*(N1*1)))*(IF(((A1*(A1*5))*(G1*(G1*3))+(N1*(N1*1)))<15,0,1)))=16,"PFC RELAY ON AUTO","PFC RELAY ON MANUAL")))="PFC RELAY ON MANUAL",99,0)))=1,"A4",IF(((R12*(IF((IF(N1=0,"MANUAL CONTROL","AUTO CONTROL"))="MANUAL CONTROL",0,1))*G1*(IF((IF(N1=0,"MANUAL CONTROL","AUTO CONTROL"))="MANUAL CONTROL",0,1))+(IF((IF((((A1*(A1*5))*(G1*(G1*3))+(N1*(N1*1)))*(IF(((A1*(A1*5))*(G1*(G1*3))+(N1*(N1*1)))<15,0,1)))=0,"PFC RELAY OFF",IF((((A1*(A1*5))*(G1*(G1*3))+(N1*(N1*1)))*(IF(((A1*(A1*5))*(G1*(G1*3))+(N1*(N1*1)))<15,0,1)))=16,"PFC RELAY ON AUTO","PFC RELAY ON MANUAL")))="PFC RELAY ON MANUAL",99,0)))*(R12*G1*A1))>90,"M4"," 4")))="M4",1,0)*99))=29,"K4",IF(((IF((IF((R12*(IF((IF(N1=0,"MANUAL CONTROL","AUTO CONTROL"))="MANUAL CONTROL",0,1))*G1*(IF((IF(N1=0,"MANUAL CONTROL","AUTO CONTROL"))="MANUAL CONTROL",0,1))+(IF((IF((((A1*(A1*5))*(G1*(G1*3))+(N1*(N1*1)))*(IF(((A1*(A1*5))*(G1*(G1*3))+(N1*(N1*1)))<15,0,1)))=0,"PFC RELAY OFF",IF((((A1*(A1*5))*(G1*(G1*3))+(N1*(N1*1)))*(IF(((A1*(A1*5))*(G1*(G1*3))+(N1*(N1*1)))<15,0,1)))=16,"PFC RELAY ON AUTO","PFC RELAY ON MANUAL")))="PFC RELAY ON MANUAL",99,0)))=1,"A4",IF(((R12*(IF((IF(N1=0,"MANUAL CONTROL","AUTO CONTROL"))="MANUAL CONTROL",0,1))*G1*(IF((IF(N1=0,"MANUAL CONTROL","AUTO CONTROL"))="MANUAL CONTROL",0,1))+(IF((IF((((A1*(A1*5))*(G1*(G1*3))+(N1*(N1*1)))*(IF(((A1*(A1*5))*(G1*(G1*3))+(N1*(N1*1)))<15,0,1)))=0,"PFC RELAY OFF",IF((((A1*(A1*5))*(G1*(G1*3))+(N1*(N1*1)))*(IF(((A1*(A1*5))*(G1*(G1*3))+(N1*(N1*1)))<15,0,1)))=16,"PFC RELAY ON AUTO","PFC RELAY ON MANUAL")))="PFC RELAY ON MANUAL",99,0)))*(R12*G1*A1))>90,"M4"," 4")))=" 4",1,0)*29)+(IF((IF((R12*(IF((IF(N1=0,"MANUAL CONTROL","AUTO CONTROL"))="MANUAL CONTROL",0,1))*G1*(IF((IF(N1=0,"MANUAL CONTROL","AUTO CONTROL"))="MANUAL CONTROL",0,1))+(IF((IF((((A1*(A1*5))*(G1*(G1*3))+(N1*(N1*1)))*(IF(((A1*(A1*5))*(G1*(G1*3))+(N1*(N1*1)))<15,0,1)))=0,"PFC RELAY OFF",IF((((A1*(A1*5))*(G1*(G1*3))+(N1*(N1*1)))*(IF(((A1*(A1*5))*(G1*(G1*3))+(N1*(N1*1)))<15,0,1)))=16,"PFC RELAY ON AUTO","PFC RELAY ON MANUAL")))="PFC RELAY ON MANUAL",99,0)))=1,"A4",IF(((R12*(IF((IF(N1=0,"MANUAL CONTROL","AUTO CONTROL"))="MANUAL CONTROL",0,1))*G1*(IF((IF(N1=0,"MANUAL CONTROL","AUTO CONTROL"))="MANUAL CONTROL",0,1))+(IF((IF((((A1*(A1*5))*(G1*(G1*3))+(N1*(N1*1)))*(IF(((A1*(A1*5))*(G1*(G1*3))+(N1*(N1*1)))<15,0,1)))=0,"PFC RELAY OFF",IF((((A1*(A1*5))*(G1*(G1*3))+(N1*(N1*1)))*(IF(((A1*(A1*5))*(G1*(G1*3))+(N1*(N1*1)))<15,0,1)))=16,"PFC RELAY ON AUTO","PFC RELAY ON MANUAL")))="PFC RELAY ON MANUAL",99,0)))*(R12*G1*A1))>90,"M4"," 4")))="A4",1,0)*59)+(IF((IF((R12*(IF((IF(N1=0,"MANUAL CONTROL","AUTO CONTROL"))="MANUAL CONTROL",0,1))*G1*(IF((IF(N1=0,"MANUAL CONTROL","AUTO CONTROL"))="MANUAL CONTROL",0,1))+(IF((IF((((A1*(A1*5))*(G1*(G1*3))+(N1*(N1*1)))*(IF(((A1*(A1*5))*(G1*(G1*3))+(N1*(N1*1)))<15,0,1)))=0,"PFC RELAY OFF",IF((((A1*(A1*5))*(G1*(G1*3))+(N1*(N1*1)))*(IF(((A1*(A1*5))*(G1*(G1*3))+(N1*(N1*1)))<15,0,1)))=16,"PFC RELAY ON AUTO","PFC RELAY ON MANUAL")))="PFC RELAY ON MANUAL",99,0)))=1,"A4",IF(((R12*(IF((IF(N1=0,"MANUAL CONTROL","AUTO CONTROL"))="MANUAL CONTROL",0,1))*G1*(IF((IF(N1=0,"MANUAL CONTROL","AUTO CONTROL"))="MANUAL CONTROL",0,1))+(IF((IF((((A1*(A1*5))*(G1*(G1*3))+(N1*(N1*1)))*(IF(((A1*(A1*5))*(G1*(G1*3))+(N1*(N1*1)))<15,0,1)))=0,"PFC RELAY OFF",IF((((A1*(A1*5))*(G1*(G1*3))+(N1*(N1*1)))*(IF(((A1*(A1*5))*(G1*(G1*3))+(N1*(N1*1)))<15,0,1)))=16,"PFC RELAY ON AUTO","PFC RELAY ON MANUAL")))="PFC RELAY ON MANUAL",99,0)))*(R12*G1*A1))>90,"M4"," 4")))="M4",1,0)*99))=99," K4","K4 ")) -> K4 | AM41: =IFERROR(((((SQRT((((IF((IF(B1*A1*A1=1,"ON","OFF"))="ON",1,0))*CD50)+((IF((IF(C1*A1*A1=1,"ON","OFF"))="ON",1,0))*CL50)+((IF((IF(D1*A1*A1=1,"ON","OFF"))="ON",1,0))*CT50)+((IF((IF(E1*A1*A1=1,"ON","OFF"))="ON",1,0))*DB50)+((IF((IF(F1*A1*A1=1,"ON","OFF"))="ON",1,0))*DJ50))^2+(((-AH55*(IF((IF(((O12*BO42*A1)*A1)=1,"ON","OFF"))="ON",1,0))-AO55*(IF((IF(((P12*BO42*A1)*A1)=1,"ON","OFF"))="ON",1,0))-AV55*(IF((IF(((Q12*BO42*A1)*A1)=1,"ON","OFF"))="ON",1,0))-BC55*(IF((IF(((R12*BO42*A1)*A1)=1,"ON","OFF"))="ON",1,0))-BJ55*(IF((IF(((S12*BO42*A1)*A1)=1,"ON","OFF"))="ON",1,0))-BQ55*(IF((IF(((T12*BO42*A1)*A1)=1,"ON","OFF"))="ON",1,0)))*G1)+(((IF((IF(B1*A1*A1=1,"ON","OFF"))="ON",1,0))*CD56)+((IF((IF(C1*A1*A1=1,"ON","OFF"))="ON",1,0))*CL56)+((IF((IF(D1*A1*A1=1,"ON","OFF"))="ON",1,0))*CT56)+((IF((IF(E1*A1*A1=1,"ON","OFF"))="ON",1,0))*DB56)+((IF((IF(F1*A1*A1=1,"ON","OFF"))="ON",1,0))*DJ56)))^2))*1000)/(AM37*A1))/SQRT(3)),0) -> 394.8232727 | AU41: =((-AH55*(IF((IF(((O12*BO42*A1)*A1)=1,"ON","OFF"))="ON",1,0))-AO55*(IF((IF(((P12*BO42*A1)*A1)=1,"ON","OFF"))="ON",1,0))-AV55*(IF((IF(((Q12*BO42*A1)*A1)=1,"ON","OFF"))="ON",1,0))-BC55*(IF((IF(((R12*BO42*A1)*A1)=1,"ON","OFF"))="ON",1,0))-BJ55*(IF((IF(((S12*BO42*A1)*A1)=1,"ON","OFF"))="ON",1,0))-BQ55*(IF((IF(((T12*BO42*A1)*A1)=1,"ON","OFF"))="ON",1,0)))*G1)+(((IF((IF(B1*A1*A1=1,"ON","OFF"))="ON",1,0))*CD56)+((IF((IF(C1*A1*A1=1,"ON","OFF"))="ON",1,0))*CL56)+((IF((IF(D1*A1*A1=1,"ON","OFF"))="ON",1,0))*CT56)+((IF((IF(E1*A1*A1=1,"ON","OFF"))="ON",1,0))*DB56)+((IF((IF(F1*A1*A1=1,"ON","OFF"))="ON",1,0))*DJ56)) -> 85 | DS41: =((IF((($CQ$36/$CQ$34)*100)>=W39,1,0))+((IF((IF((($CQ$36/$CQ$34)*100)>=W39,1,0))=0,(IF((($CQ$36/$CQ$34)*100)>=W40,1,0))*(($CQ$36/$CQ$34)*100),0))*100)) -> 6838.539683 | DT41: =IF(DS41=0,0,IF(DS41=1,1,DS41/100)) -> 68.38539683
A42: 29 | B42: 1 | C42: 0 | D42: 1 | E42: 0 | F42: 0 | G42: 1 | H42: 109.5421327 | I42: 105 | J42: 4.542132653 | K42: 0 | L42: 0 | M42: 35 | N42: 0 | O42: 0 | P42: 0 | Q42: 0 | R42: 0 | S42: 0 | T42: 0 | U42: 0 | W42: 60 | X42: =(((U1*T1)*SIN(2*PI()*(1*(V1/50000*(ROW()-1))+W1/360)))) -> 68.45704096 | Y42: -6.598896139 | Z42: 1 | AK42: =IF(((IF((IF((Q12*(IF((IF(N1=0,"MANUAL CONTROL","AUTO CONTROL"))="MANUAL CONTROL",0,1))*G1*(IF((IF(N1=0,"MANUAL CONTROL","AUTO CONTROL"))="MANUAL CONTROL",0,1))+(IF((IF((((A1*(A1*5))*(G1*(G1*3))+(N1*(N1*1)))*(IF(((A1*(A1*5))*(G1*(G1*3))+(N1*(N1*1)))<15,0,1)))=0,"PFC RELAY OFF",IF((((A1*(A1*5))*(G1*(G1*3))+(N1*(N1*1)))*(IF(((A1*(A1*5))*(G1*(G1*3))+(N1*(N1*1)))<15,0,1)))=16,"PFC RELAY ON AUTO","PFC RELAY ON MANUAL")))="PFC RELAY ON MANUAL",99,0)))=1,"A3",IF(((Q12*(IF((IF(N1=0,"MANUAL CONTROL","AUTO CONTROL"))="MANUAL CONTROL",0,1))*G1*(IF((IF(N1=0,"MANUAL CONTROL","AUTO CONTROL"))="MANUAL CONTROL",0,1))+(IF((IF((((A1*(A1*5))*(G1*(G1*3))+(N1*(N1*1)))*(IF(((A1*(A1*5))*(G1*(G1*3))+(N1*(N1*1)))<15,0,1)))=0,"PFC RELAY OFF",IF((((A1*(A1*5))*(G1*(G1*3))+(N1*(N1*1)))*(IF(((A1*(A1*5))*(G1*(G1*3))+(N1*(N1*1)))<15,0,1)))=16,"PFC RELAY ON AUTO","PFC RELAY ON MANUAL")))="PFC RELAY ON MANUAL",99,0)))*(Q12*G1*A1))>90,"M3"," 3")))=" 3",1,0)*29)+(IF((IF((Q12*(IF((IF(N1=0,"MANUAL CONTROL","AUTO CONTROL"))="MANUAL CONTROL",0,1))*G1*(IF((IF(N1=0,"MANUAL CONTROL","AUTO CONTROL"))="MANUAL CONTROL",0,1))+(IF((IF((((A1*(A1*5))*(G1*(G1*3))+(N1*(N1*1)))*(IF(((A1*(A1*5))*(G1*(G1*3))+(N1*(N1*1)))<15,0,1)))=0,"PFC RELAY OFF",IF((((A1*(A1*5))*(G1*(G1*3))+(N1*(N1*1)))*(IF(((A1*(A1*5))*(G1*(G1*3))+(N1*(N1*1)))<15,0,1)))=16,"PFC RELAY ON AUTO","PFC RELAY ON MANUAL")))="PFC RELAY ON MANUAL",99,0)))=1,"A3",IF(((Q12*(IF((IF(N1=0,"MANUAL CONTROL","AUTO CONTROL"))="MANUAL CONTROL",0,1))*G1*(IF((IF(N1=0,"MANUAL CONTROL","AUTO CONTROL"))="MANUAL CONTROL",0,1))+(IF((IF((((A1*(A1*5))*(G1*(G1*3))+(N1*(N1*1)))*(IF(((A1*(A1*5))*(G1*(G1*3))+(N1*(N1*1)))<15,0,1)))=0,"PFC RELAY OFF",IF((((A1*(A1*5))*(G1*(G1*3))+(N1*(N1*1)))*(IF(((A1*(A1*5))*(G1*(G1*3))+(N1*(N1*1)))<15,0,1)))=16,"PFC RELAY ON AUTO","PFC RELAY ON MANUAL")))="PFC RELAY ON MANUAL",99,0)))*(Q12*G1*A1))>90,"M3"," 3")))="A3",1,0)*59)+(IF((IF((Q12*(IF((IF(N1=0,"MANUAL CONTROL","AUTO CONTROL"))="MANUAL CONTROL",0,1))*G1*(IF((IF(N1=0,"MANUAL CONTROL","AUTO CONTROL"))="MANUAL CONTROL",0,1))+(IF((IF((((A1*(A1*5))*(G1*(G1*3))+(N1*(N1*1)))*(IF(((A1*(A1*5))*(G1*(G1*3))+(N1*(N1*1)))<15,0,1)))=0,"PFC RELAY OFF",IF((((A1*(A1*5))*(G1*(G1*3))+(N1*(N1*1)))*(IF(((A1*(A1*5))*(G1*(G1*3))+(N1*(N1*1)))<15,0,1)))=16,"PFC RELAY ON AUTO","PFC RELAY ON MANUAL")))="PFC RELAY ON MANUAL",99,0)))=1,"A3",IF(((Q12*(IF((IF(N1=0,"MANUAL CONTROL","AUTO CONTROL"))="MANUAL CONTROL",0,1))*G1*(IF((IF(N1=0,"MANUAL CONTROL","AUTO CONTROL"))="MANUAL CONTROL",0,1))+(IF((IF((((A1*(A1*5))*(G1*(G1*3))+(N1*(N1*1)))*(IF(((A1*(A1*5))*(G1*(G1*3))+(N1*(N1*1)))<15,0,1)))=0,"PFC RELAY OFF",IF((((A1*(A1*5))*(G1*(G1*3))+(N1*(N1*1)))*(IF(((A1*(A1*5))*(G1*(G1*3))+(N1*(N1*1)))<15,0,1)))=16,"PFC RELAY ON AUTO","PFC RELAY ON MANUAL")))="PFC RELAY ON MANUAL",99,0)))*(Q12*G1*A1))>90,"M3"," 3")))="M3",1,0)*99))=29,"K3",IF(((IF((IF((Q12*(IF((IF(N1=0,"MANUAL CONTROL","AUTO CONTROL"))="MANUAL CONTROL",0,1))*G1*(IF((IF(N1=0,"MANUAL CONTROL","AUTO CONTROL"))="MANUAL CONTROL",0,1))+(IF((IF((((A1*(A1*5))*(G1*(G1*3))+(N1*(N1*1)))*(IF(((A1*(A1*5))*(G1*(G1*3))+(N1*(N1*1)))<15,0,1)))=0,"PFC RELAY OFF",IF((((A1*(A1*5))*(G1*(G1*3))+(N1*(N1*1)))*(IF(((A1*(A1*5))*(G1*(G1*3))+(N1*(N1*1)))<15,0,1)))=16,"PFC RELAY ON AUTO","PFC RELAY ON MANUAL")))="PFC RELAY ON MANUAL",99,0)))=1,"A3",IF(((Q12*(IF((IF(N1=0,"MANUAL CONTROL","AUTO CONTROL"))="MANUAL CONTROL",0,1))*G1*(IF((IF(N1=0,"MANUAL CONTROL","AUTO CONTROL"))="MANUAL CONTROL",0,1))+(IF((IF((((A1*(A1*5))*(G1*(G1*3))+(N1*(N1*1)))*(IF(((A1*(A1*5))*(G1*(G1*3))+(N1*(N1*1)))<15,0,1)))=0,"PFC RELAY OFF",IF((((A1*(A1*5))*(G1*(G1*3))+(N1*(N1*1)))*(IF(((A1*(A1*5))*(G1*(G1*3))+(N1*(N1*1)))<15,0,1)))=16,"PFC RELAY ON AUTO","PFC RELAY ON MANUAL")))="PFC RELAY ON MANUAL",99,0)))*(Q12*G1*A1))>90,"M3"," 3")))=" 3",1,0)*29)+(IF((IF((Q12*(IF((IF(N1=0,"MANUAL CONTROL","AUTO CONTROL"))="MANUAL CONTROL",0,1))*G1*(IF((IF(N1=0,"MANUAL CONTROL","AUTO CONTROL"))="MANUAL CONTROL",0,1))+(IF((IF((((A1*(A1*5))*(G1*(G1*3))+(N1*(N1*1)))*(IF(((A1*(A1*5))*(G1*(G1*3))+(N1*(N1*1)))<15,0,1)))=0,"PFC RELAY OFF",IF((((A1*(A1*5))*(G1*(G1*3))+(N1*(N1*1)))*(IF(((A1*(A1*5))*(G1*(G1*3))+(N1*(N1*1)))<15,0,1)))=16,"PFC RELAY ON AUTO","PFC RELAY ON MANUAL")))="PFC RELAY ON MANUAL",99,0)))=1,"A3",IF(((Q12*(IF((IF(N1=0,"MANUAL CONTROL","AUTO CONTROL"))="MANUAL CONTROL",0,1))*G1*(IF((IF(N1=0,"MANUAL CONTROL","AUTO CONTROL"))="MANUAL CONTROL",0,1))+(IF((IF((((A1*(A1*5))*(G1*(G1*3))+(N1*(N1*1)))*(IF(((A1*(A1*5))*(G1*(G1*3))+(N1*(N1*1)))<15,0,1)))=0,"PFC RELAY OFF",IF((((A1*(A1*5))*(G1*(G1*3))+(N1*(N1*1)))*(IF(((A1*(A1*5))*(G1*(G1*3))+(N1*(N1*1)))<15,0,1)))=16,"PFC RELAY ON AUTO","PFC RELAY ON MANUAL")))="PFC RELAY ON MANUAL",99,0)))*(Q12*G1*A1))>90,"M3"," 3")))="A3",1,0)*59)+(IF((IF((Q12*(IF((IF(N1=0,"MANUAL CONTROL","AUTO CONTROL"))="MANUAL CONTROL",0,1))*G1*(IF((IF(N1=0,"MANUAL CONTROL","AUTO CONTROL"))="MANUAL CONTROL",0,1))+(IF((IF((((A1*(A1*5))*(G1*(G1*3))+(N1*(N1*1)))*(IF(((A1*(A1*5))*(G1*(G1*3))+(N1*(N1*1)))<15,0,1)))=0,"PFC RELAY OFF",IF((((A1*(A1*5))*(G1*(G1*3))+(N1*(N1*1)))*(IF(((A1*(A1*5))*(G1*(G1*3))+(N1*(N1*1)))<15,0,1)))=16,"PFC RELAY ON AUTO","PFC RELAY ON MANUAL")))="PFC RELAY ON MANUAL",99,0)))=1,"A3",IF(((Q12*(IF((IF(N1=0,"MANUAL CONTROL","AUTO CONTROL"))="MANUAL CONTROL",0,1))*G1*(IF((IF(N1=0,"MANUAL CONTROL","AUTO CONTROL"))="MANUAL CONTROL",0,1))+(IF((IF((((A1*(A1*5))*(G1*(G1*3))+(N1*(N1*1)))*(IF(((A1*(A1*5))*(G1*(G1*3))+(N1*(N1*1)))<15,0,1)))=0,"PFC RELAY OFF",IF((((A1*(A1*5))*(G1*(G1*3))+(N1*(N1*1)))*(IF(((A1*(A1*5))*(G1*(G1*3))+(N1*(N1*1)))<15,0,1)))=16,"PFC RELAY ON AUTO","PFC RELAY ON MANUAL")))="PFC RELAY ON MANUAL",99,0)))*(Q12*G1*A1))>90,"M3"," 3")))="M3",1,0)*99))=99," K3","K3 ")) -> K3 | BM42: =BO42 -> 1 | BN42: =BM42 -> 1 | BO42: =G1 -> 1 | CD42: =CF42*A1 -> 1 | CE42: =(((((B1*A1)+A1-1)*(IF(CD50>0,1,0))+(IF((CD50+CD56)=0,-1,9))+(IF((CD50*CD56)=0,22,13)))*(IF(CH52=1,0,1))+CF42))*(IF(CD50>0,1,0))+CF42 -> 25 | CF42: =B1*A1 -> 1 | CL42: =CN42*A1 -> 1 | CM42: =(((((C1*A1)+A1-1)*(IF(CL50>0,1,0))+(IF((CL50+CL56)=0,-1,9))+(IF((CL50*CL56)=0,22,13)))*(IF(CP52=1,0,1))+CN42))*(IF(CL50>0,1,0))+CN42 -> 25 | CN42: =C1*A1 -> 1 | CT42: =CV42*A1 -> 1 | CU42: =(((((D1*A1)+A1-1)*(IF(CT50>0,1,0))+(IF((CT50+CT56)=0,-1,9))+(IF((CT50*CT56)=0,22,13)))*(IF(CX52=1,0,1))+CV42))*(IF(CT50>0,1,0))+CV42 -> 25 | CV42: =D1*A1 -> 1 | DB42: =DD42*A1 -> 1 | DC42: =(((((E1*A1)+A1-1)*(IF(DB50>0,1,0))+(IF((DB50+DB56)=0,-1,9))+(IF((DB50*DB56)=0,22,13)))*(IF(DF52=1,0,1))+DD42))*(IF(DB50>0,1,0))+DD42 -> 25 | DD42: =E1*A1 -> 1 | DJ42: =DL42*A1 -> 1 | DK42: =(((((F1*A1)+A1-1)*(IF(DJ50>0,1,0))+(IF((DJ50+DJ56)=0,-1,9))+(IF((DJ50*DJ56)=0,22,13)))*(IF(DN52=1,0,1))+DL42))*(IF(DJ50>0,1,0))+DL42 -> 25 | DL42: =F1*A1 -> 1 | DS42: =((IF((($CQ$36/$CQ$34)*100)>=W40,1,0))+((IF((IF((($CQ$36/$CQ$34)*100)>=W40,1,0))=0,(IF((($CQ$36/$CQ$34)*100)>=W41,1,0))*(($CQ$36/$CQ$34)*100),0))*100)) -> 1 | DT42: 1
A43: 30 | B43: 1 | C43: 0 | D43: 0 | E43: 1 | F43: 1 | G43: 0 | H43: 109.5421327 | I43: 125 | J43: 15.45786735 | K43: 0 | L43: 0 | M43: 35 | N43: 0 | O43: 0 | P43: 0 | Q43: 0 | R43: 0 | S43: 0 | T43: 0 | U43: 0 | W43: 56 | X43: =(((U1*T1)*SIN(2*PI()*(1*(V1/50000*(ROW()-1))+W1/360)))) -> 70.08826321 | Y43: -5.889119482 | Z43: 1 | AK43: =IF(((IF((IF((P12*(IF((IF(N1=0,"MANUAL CONTROL","AUTO CONTROL"))="MANUAL CONTROL",0,1))*G1*(IF((IF(N1=0,"MANUAL CONTROL","AUTO CONTROL"))="MANUAL CONTROL",0,1))+(IF((IF((((A1*(A1*5))*(G1*(G1*3))+(N1*(N1*1)))*(IF(((A1*(A1*5))*(G1*(G1*3))+(N1*(N1*1)))<15,0,1)))=0,"PFC RELAY OFF",IF((((A1*(A1*5))*(G1*(G1*3))+(N1*(N1*1)))*(IF(((A1*(A1*5))*(G1*(G1*3))+(N1*(N1*1)))<15,0,1)))=16,"PFC RELAY ON AUTO","PFC RELAY ON MANUAL")))="PFC RELAY ON MANUAL",99,0)))=1,"A2",IF(((P12*(IF((IF(N1=0,"MANUAL CONTROL","AUTO CONTROL"))="MANUAL CONTROL",0,1))*G1*(IF((IF(N1=0,"MANUAL CONTROL","AUTO CONTROL"))="MANUAL CONTROL",0,1))+(IF((IF((((A1*(A1*5))*(G1*(G1*3))+(N1*(N1*1)))*(IF(((A1*(A1*5))*(G1*(G1*3))+(N1*(N1*1)))<15,0,1)))=0,"PFC RELAY OFF",IF((((A1*(A1*5))*(G1*(G1*3))+(N1*(N1*1)))*(IF(((A1*(A1*5))*(G1*(G1*3))+(N1*(N1*1)))<15,0,1)))=16,"PFC RELAY ON AUTO","PFC RELAY ON MANUAL")))="PFC RELAY ON MANUAL",99,0)))*(P12*G1*A1))>90,"M2"," 2")))=" 2",1,0)*29)+(IF((IF((P12*(IF((IF(N1=0,"MANUAL CONTROL","AUTO CONTROL"))="MANUAL CONTROL",0,1))*G1*(IF((IF(N1=0,"MANUAL CONTROL","AUTO CONTROL"))="MANUAL CONTROL",0,1))+(IF((IF((((A1*(A1*5))*(G1*(G1*3))+(N1*(N1*1)))*(IF(((A1*(A1*5))*(G1*(G1*3))+(N1*(N1*1)))<15,0,1)))=0,"PFC RELAY OFF",IF((((A1*(A1*5))*(G1*(G1*3))+(N1*(N1*1)))*(IF(((A1*(A1*5))*(G1*(G1*3))+(N1*(N1*1)))<15,0,1)))=16,"PFC RELAY ON AUTO","PFC RELAY ON MANUAL")))="PFC RELAY ON MANUAL",99,0)))=1,"A2",IF(((P12*(IF((IF(N1=0,"MANUAL CONTROL","AUTO CONTROL"))="MANUAL CONTROL",0,1))*G1*(IF((IF(N1=0,"MANUAL CONTROL","AUTO CONTROL"))="MANUAL CONTROL",0,1))+(IF((IF((((A1*(A1*5))*(G1*(G1*3))+(N1*(N1*1)))*(IF(((A1*(A1*5))*(G1*(G1*3))+(N1*(N1*1)))<15,0,1)))=0,"PFC RELAY OFF",IF((((A1*(A1*5))*(G1*(G1*3))+(N1*(N1*1)))*(IF(((A1*(A1*5))*(G1*(G1*3))+(N1*(N1*1)))<15,0,1)))=16,"PFC RELAY ON AUTO","PFC RELAY ON MANUAL")))="PFC RELAY ON MANUAL",99,0)))*(P12*G1*A1))>90,"M2"," 2")))="A2",1,0)*59)+(IF((IF((P12*(IF((IF(N1=0,"MANUAL CONTROL","AUTO CONTROL"))="MANUAL CONTROL",0,1))*G1*(IF((IF(N1=0,"MANUAL CONTROL","AUTO CONTROL"))="MANUAL CONTROL",0,1))+(IF((IF((((A1*(A1*5))*(G1*(G1*3))+(N1*(N1*1)))*(IF(((A1*(A1*5))*(G1*(G1*3))+(N1*(N1*1)))<15,0,1)))=0,"PFC RELAY OFF",IF((((A1*(A1*5))*(G1*(G1*3))+(N1*(N1*1)))*(IF(((A1*(A1*5))*(G1*(G1*3))+(N1*(N1*1)))<15,0,1)))=16,"PFC RELAY ON AUTO","PFC RELAY ON MANUAL")))="PFC RELAY ON MANUAL",99,0)))=1,"A2",IF(((P12*(IF((IF(N1=0,"MANUAL CONTROL","AUTO CONTROL"))="MANUAL CONTROL",0,1))*G1*(IF((IF(N1=0,"MANUAL CONTROL","AUTO CONTROL"))="MANUAL CONTROL",0,1))+(IF((IF((((A1*(A1*5))*(G1*(G1*3))+(N1*(N1*1)))*(IF(((A1*(A1*5))*(G1*(G1*3))+(N1*(N1*1)))<15,0,1)))=0,"PFC RELAY OFF",IF((((A1*(A1*5))*(G1*(G1*3))+(N1*(N1*1)))*(IF(((A1*(A1*5))*(G1*(G1*3))+(N1*(N1*1)))<15,0,1)))=16,"PFC RELAY ON AUTO","PFC RELAY ON MANUAL")))="PFC RELAY ON MANUAL",99,0)))*(P12*G1*A1))>90,"M2"," 2")))="M2",1,0)*99))=29,"K2",IF(((IF((IF((P12*(IF((IF(N1=0,"MANUAL CONTROL","AUTO CONTROL"))="MANUAL CONTROL",0,1))*G1*(IF((IF(N1=0,"MANUAL CONTROL","AUTO CONTROL"))="MANUAL CONTROL",0,1))+(IF((IF((((A1*(A1*5))*(G1*(G1*3))+(N1*(N1*1)))*(IF(((A1*(A1*5))*(G1*(G1*3))+(N1*(N1*1)))<15,0,1)))=0,"PFC RELAY OFF",IF((((A1*(A1*5))*(G1*(G1*3))+(N1*(N1*1)))*(IF(((A1*(A1*5))*(G1*(G1*3))+(N1*(N1*1)))<15,0,1)))=16,"PFC RELAY ON AUTO","PFC RELAY ON MANUAL")))="PFC RELAY ON MANUAL",99,0)))=1,"A2",IF(((P12*(IF((IF(N1=0,"MANUAL CONTROL","AUTO CONTROL"))="MANUAL CONTROL",0,1))*G1*(IF((IF(N1=0,"MANUAL CONTROL","AUTO CONTROL"))="MANUAL CONTROL",0,1))+(IF((IF((((A1*(A1*5))*(G1*(G1*3))+(N1*(N1*1)))*(IF(((A1*(A1*5))*(G1*(G1*3))+(N1*(N1*1)))<15,0,1)))=0,"PFC RELAY OFF",IF((((A1*(A1*5))*(G1*(G1*3))+(N1*(N1*1)))*(IF(((A1*(A1*5))*(G1*(G1*3))+(N1*(N1*1)))<15,0,1)))=16,"PFC RELAY ON AUTO","PFC RELAY ON MANUAL")))="PFC RELAY ON MANUAL",99,0)))*(P12*G1*A1))>90,"M2"," 2")))=" 2",1,0)*29)+(IF((IF((P12*(IF((IF(N1=0,"MANUAL CONTROL","AUTO CONTROL"))="MANUAL CONTROL",0,1))*G1*(IF((IF(N1=0,"MANUAL CONTROL","AUTO CONTROL"))="MANUAL CONTROL",0,1))+(IF((IF((((A1*(A1*5))*(G1*(G1*3))+(N1*(N1*1)))*(IF(((A1*(A1*5))*(G1*(G1*3))+(N1*(N1*1)))<15,0,1)))=0,"PFC RELAY OFF",IF((((A1*(A1*5))*(G1*(G1*3))+(N1*(N1*1)))*(IF(((A1*(A1*5))*(G1*(G1*3))+(N1*(N1*1)))<15,0,1)))=16,"PFC RELAY ON AUTO","PFC RELAY ON MANUAL")))="PFC RELAY ON MANUAL",99,0)))=1,"A2",IF(((P12*(IF((IF(N1=0,"MANUAL CONTROL","AUTO CONTROL"))="MANUAL CONTROL",0,1))*G1*(IF((IF(N1=0,"MANUAL CONTROL","AUTO CONTROL"))="MANUAL CONTROL",0,1))+(IF((IF((((A1*(A1*5))*(G1*(G1*3))+(N1*(N1*1)))*(IF(((A1*(A1*5))*(G1*(G1*3))+(N1*(N1*1)))<15,0,1)))=0,"PFC RELAY OFF",IF((((A1*(A1*5))*(G1*(G1*3))+(N1*(N1*1)))*(IF(((A1*(A1*5))*(G1*(G1*3))+(N1*(N1*1)))<15,0,1)))=16,"PFC RELAY ON AUTO","PFC RELAY ON MANUAL")))="PFC RELAY ON MANUAL",99,0)))*(P12*G1*A1))>90,"M2"," 2")))="A2",1,0)*59)+(IF((IF((P12*(IF((IF(N1=0,"MANUAL CONTROL","AUTO CONTROL"))="MANUAL CONTROL",0,1))*G1*(IF((IF(N1=0,"MANUAL CONTROL","AUTO CONTROL"))="MANUAL CONTROL",0,1))+(IF((IF((((A1*(A1*5))*(G1*(G1*3))+(N1*(N1*1)))*(IF(((A1*(A1*5))*(G1*(G1*3))+(N1*(N1*1)))<15,0,1)))=0,"PFC RELAY OFF",IF((((A1*(A1*5))*(G1*(G1*3))+(N1*(N1*1)))*(IF(((A1*(A1*5))*(G1*(G1*3))+(N1*(N1*1)))<15,0,1)))=16,"PFC RELAY ON AUTO","PFC RELAY ON MANUAL")))="PFC RELAY ON MANUAL",99,0)))=1,"A2",IF(((P12*(IF((IF(N1=0,"MANUAL CONTROL","AUTO CONTROL"))="MANUAL CONTROL",0,1))*G1*(IF((IF(N1=0,"MANUAL CONTROL","AUTO CONTROL"))="MANUAL CONTROL",0,1))+(IF((IF((((A1*(A1*5))*(G1*(G1*3))+(N1*(N1*1)))*(IF(((A1*(A1*5))*(G1*(G1*3))+(N1*(N1*1)))<15,0,1)))=0,"PFC RELAY OFF",IF((((A1*(A1*5))*(G1*(G1*3))+(N1*(N1*1)))*(IF(((A1*(A1*5))*(G1*(G1*3))+(N1*(N1*1)))<15,0,1)))=16,"PFC RELAY ON AUTO","PFC RELAY ON MANUAL")))="PFC RELAY ON MANUAL",99,0)))*(P12*G1*A1))>90,"M2"," 2")))="M2",1,0)*99))=99," K2","K2 ")) -> K2 | AM43: 0.95 | AQ43: =IF((P1+(IF(AM43=1,2,0)))=2, " ", IF((P1+(IF(AM43=1,2,0)))=1, "cap", IF((P1+(IF(AM43=1,2,0)))=0, "ind", " "))) -> ind | AV43: =IFERROR(((((IF((IF(B1*A1*A1=1,"ON","OFF"))="ON",1,0))*CD50)+((IF((IF(C1*A1*A1=1,"ON","OFF"))="ON",1,0))*CL50)+((IF((IF(D1*A1*A1=1,"ON","OFF"))="ON",1,0))*CT50)+((IF((IF(E1*A1*A1=1,"ON","OFF"))="ON",1,0))*DB50)+((IF((IF(F1*A1*A1=1,"ON","OFF"))="ON",1,0))*DJ50))/(SQRT((((IF((IF(B1*A1*A1=1,"ON","OFF"))="ON",1,0))*CD50)+((IF((IF(C1*A1*A1=1,"ON","OFF"))="ON",1,0))*CL50)+((IF((IF(D1*A1*A1=1,"ON","OFF"))="ON",1,0))*CT50)+((IF((IF(E1*A1*A1=1,"ON","OFF"))="ON",1,0))*DB50)+((IF((IF(F1*A1*A1=1,"ON","OFF"))="ON",1,0))*DJ50))^2+(((-AH55*(IF((IF(((O12*G1*A1)*A1)=1,"ON","OFF"))="ON",1,0))-AO55*(IF((IF(((P12*G1*A1)*A1)=1,"ON","OFF"))="ON",1,0))-AV55*(IF((IF(((Q12*G1*A1)*A1)=1,"ON","OFF"))="ON",1,0))-BC55*(IF((IF(((R12*G1*A1)*A1)=1,"ON","OFF"))="ON",1,0))-BJ55*(IF((IF(((S12*G1*A1)*A1)=1,"ON","OFF"))="ON",1,0))-BQ55*(IF((IF(((T12*G1*A1)*A1)=1,"ON","OFF"))="ON",1,0)))*G1)+(((IF((IF(B1*A1*A1=1,"ON","OFF"))="ON",1,0))*CD56)+((IF((IF(C1*A1*A1=1,"ON","OFF"))="ON",1,0))*CL56)+((IF((IF(D1*A1*A1=1,"ON","OFF"))="ON",1,0))*CT56)+((IF((IF(E1*A1*A1=1,"ON","OFF"))="ON",1,0))*DB56)+((IF((IF(F1*A1*A1=1,"ON","OFF"))="ON",1,0))*DJ56)))^2))),"---") -> 0.9504953252 | AZ43: =IF(((IF((IF(AU41>0,"ind",""))="ind",2,0))+(IF((IF(AU41<0,"cap",""))="cap",1,0)))>1,"ind",(IF(((IF((IF(AU41>0,"ind",""))="ind",2,0))+(IF((IF(AU41<0,"cap",""))="cap",1,0)))=1,"cap",""))) -> ind | BO43: =BO42 -> 1 | CE43: =B1*A1*(IF(CD50>0,1,0)) -> 1 | CF43: =B1*A1 -> 1 | CM43: =C1*A1*(IF(CL50>0,1,0)) -> 1 | CN43: =CN42 -> 1 | CU43: =D1*A1*(IF(CT50>0,1,0)) -> 1 | CV43: =CV42 -> 1 | DB43: =DB42 -> 1 | DC43: =E1*A1*(IF(DB50>0,1,0)) -> 1 | DD43: =E1*A1 -> 1 | DK43: =F1*A1*(IF(DJ50>0,1,0)) -> 1 | DL43: =F1*A1 -> 1 | DS43: =(IF((($CQ$36/$CQ$34)*100)>=W41,1,0))+((IF((IF((($CQ$36/$CQ$34)*100)>=W41,1,0))=0,(IF((($CQ$36/$CQ$34)*100)>=W42,1,0))*(($CQ$36/$CQ$34)*100),0))*100) -> 1 | DT43: 1
A44: 31 | B44: 1 | C44: 0 | D44: 0 | E44: 1 | F44: 0 | G44: 1 | H44: 109.5421327 | I44: 125 | J44: 15.45786735 | K44: 0 | L44: 0 | M44: 35 | N44: 0 | O44: 0 | P44: 0 | Q44: 0 | R44: 0 | S44: 0 | T44: 0 | U44: 0 | W44: 52 | X44: =(((U1*T1)*SIN(2*PI()*(1*(V1/50000*(ROW()-1))+W1/360)))) -> 71.71671849 | Y44: -5.179110333 | Z44: 1 | AK44: =IF(((IF((IF((O12*(IF((IF(N1=0,"MANUAL CONTROL","AUTO CONTROL"))="MANUAL CONTROL",0,1))*G1*(IF((IF(N1=0,"MANUAL CONTROL","AUTO CONTROL"))="MANUAL CONTROL",0,1))+(IF((IF((((A1*(A1*5))*(G1*(G1*3))+(N1*(N1*1)))*(IF(((A1*(A1*5))*(G1*(G1*3))+(N1*(N1*1)))<15,0,1)))=0,"PFC RELAY OFF",IF((((A1*(A1*5))*(G1*(G1*3))+(N1*(N1*1)))*(IF(((A1*(A1*5))*(G1*(G1*3))+(N1*(N1*1)))<15,0,1)))=16,"PFC RELAY ON AUTO","PFC RELAY ON MANUAL")))="PFC RELAY ON MANUAL",99,0)))=1,"A1",IF(((O12*(IF((IF(N1=0,"MANUAL CONTROL","AUTO CONTROL"))="MANUAL CONTROL",0,1))*G1*(IF((IF(N1=0,"MANUAL CONTROL","AUTO CONTROL"))="MANUAL CONTROL",0,1))+(IF((IF((((A1*(A1*5))*(G1*(G1*3))+(N1*(N1*1)))*(IF(((A1*(A1*5))*(G1*(G1*3))+(N1*(N1*1)))<15,0,1)))=0,"PFC RELAY OFF",IF((((A1*(A1*5))*(G1*(G1*3))+(N1*(N1*1)))*(IF(((A1*(A1*5))*(G1*(G1*3))+(N1*(N1*1)))<15,0,1)))=16,"PFC RELAY ON AUTO","PFC RELAY ON MANUAL")))="PFC RELAY ON MANUAL",99,0)))*(O12*G1*A1))>90,"M1"," 1")))=" 1",1,0)*29)+(IF((IF((O12*(IF((IF(N1=0,"MANUAL CONTROL","AUTO CONTROL"))="MANUAL CONTROL",0,1))*G1*(IF((IF(N1=0,"MANUAL CONTROL","AUTO CONTROL"))="MANUAL CONTROL",0,1))+(IF((IF((((A1*(A1*5))*(G1*(G1*3))+(N1*(N1*1)))*(IF(((A1*(A1*5))*(G1*(G1*3))+(N1*(N1*1)))<15,0,1)))=0,"PFC RELAY OFF",IF((((A1*(A1*5))*(G1*(G1*3))+(N1*(N1*1)))*(IF(((A1*(A1*5))*(G1*(G1*3))+(N1*(N1*1)))<15,0,1)))=16,"PFC RELAY ON AUTO","PFC RELAY ON MANUAL")))="PFC RELAY ON MANUAL",99,0)))=1,"A1",IF(((O12*(IF((IF(N1=0,"MANUAL CONTROL","AUTO CONTROL"))="MANUAL CONTROL",0,1))*G1*(IF((IF(N1=0,"MANUAL CONTROL","AUTO CONTROL"))="MANUAL CONTROL",0,1))+(IF((IF((((A1*(A1*5))*(G1*(G1*3))+(N1*(N1*1)))*(IF(((A1*(A1*5))*(G1*(G1*3))+(N1*(N1*1)))<15,0,1)))=0,"PFC RELAY OFF",IF((((A1*(A1*5))*(G1*(G1*3))+(N1*(N1*1)))*(IF(((A1*(A1*5))*(G1*(G1*3))+(N1*(N1*1)))<15,0,1)))=16,"PFC RELAY ON AUTO","PFC RELAY ON MANUAL")))="PFC RELAY ON MANUAL",99,0)))*(O12*G1*A1))>90,"M1"," 1")))="A1",1,0)*59)+(IF((IF((O12*(IF((IF(N1=0,"MANUAL CONTROL","AUTO CONTROL"))="MANUAL CONTROL",0,1))*G1*(IF((IF(N1=0,"MANUAL CONTROL","AUTO CONTROL"))="MANUAL CONTROL",0,1))+(IF((IF((((A1*(A1*5))*(G1*(G1*3))+(N1*(N1*1)))*(IF(((A1*(A1*5))*(G1*(G1*3))+(N1*(N1*1)))<15,0,1)))=0,"PFC RELAY OFF",IF((((A1*(A1*5))*(G1*(G1*3))+(N1*(N1*1)))*(IF(((A1*(A1*5))*(G1*(G1*3))+(N1*(N1*1)))<15,0,1)))=16,"PFC RELAY ON AUTO","PFC RELAY ON MANUAL")))="PFC RELAY ON MANUAL",99,0)))=1,"A1",IF(((O12*(IF((IF(N1=0,"MANUAL CONTROL","AUTO CONTROL"))="MANUAL CONTROL",0,1))*G1*(IF((IF(N1=0,"MANUAL CONTROL","AUTO CONTROL"))="MANUAL CONTROL",0,1))+(IF((IF((((A1*(A1*5))*(G1*(G1*3))+(N1*(N1*1)))*(IF(((A1*(A1*5))*(G1*(G1*3))+(N1*(N1*1)))<15,0,1)))=0,"PFC RELAY OFF",IF((((A1*(A1*5))*(G1*(G1*3))+(N1*(N1*1)))*(IF(((A1*(A1*5))*(G1*(G1*3))+(N1*(N1*1)))<15,0,1)))=16,"PFC RELAY ON AUTO","PFC RELAY ON MANUAL")))="PFC RELAY ON MANUAL",99,0)))*(O12*G1*A1))>90,"M1"," 1")))="M1",1,0)*99))=29,"K1",IF(((IF((IF((O12*(IF((IF(N1=0,"MANUAL CONTROL","AUTO CONTROL"))="MANUAL CONTROL",0,1))*G1*(IF((IF(N1=0,"MANUAL CONTROL","AUTO CONTROL"))="MANUAL CONTROL",0,1))+(IF((IF((((A1*(A1*5))*(G1*(G1*3))+(N1*(N1*1)))*(IF(((A1*(A1*5))*(G1*(G1*3))+(N1*(N1*1)))<15,0,1)))=0,"PFC RELAY OFF",IF((((A1*(A1*5))*(G1*(G1*3))+(N1*(N1*1)))*(IF(((A1*(A1*5))*(G1*(G1*3))+(N1*(N1*1)))<15,0,1)))=16,"PFC RELAY ON AUTO","PFC RELAY ON MANUAL")))="PFC RELAY ON MANUAL",99,0)))=1,"A1",IF(((O12*(IF((IF(N1=0,"MANUAL CONTROL","AUTO CONTROL"))="MANUAL CONTROL",0,1))*G1*(IF((IF(N1=0,"MANUAL CONTROL","AUTO CONTROL"))="MANUAL CONTROL",0,1))+(IF((IF((((A1*(A1*5))*(G1*(G1*3))+(N1*(N1*1)))*(IF(((A1*(A1*5))*(G1*(G1*3))+(N1*(N1*1)))<15,0,1)))=0,"PFC RELAY OFF",IF((((A1*(A1*5))*(G1*(G1*3))+(N1*(N1*1)))*(IF(((A1*(A1*5))*(G1*(G1*3))+(N1*(N1*1)))<15,0,1)))=16,"PFC RELAY ON AUTO","PFC RELAY ON MANUAL")))="PFC RELAY ON MANUAL",99,0)))*(O12*G1*A1))>90,"M1"," 1")))=" 1",1,0)*29)+(IF((IF((O12*(IF((IF(N1=0,"MANUAL CONTROL","AUTO CONTROL"))="MANUAL CONTROL",0,1))*G1*(IF((IF(N1=0,"MANUAL CONTROL","AUTO CONTROL"))="MANUAL CONTROL",0,1))+(IF((IF((((A1*(A1*5))*(G1*(G1*3))+(N1*(N1*1)))*(IF(((A1*(A1*5))*(G1*(G1*3))+(N1*(N1*1)))<15,0,1)))=0,"PFC RELAY OFF",IF((((A1*(A1*5))*(G1*(G1*3))+(N1*(N1*1)))*(IF(((A1*(A1*5))*(G1*(G1*3))+(N1*(N1*1)))<15,0,1)))=16,"PFC RELAY ON AUTO","PFC RELAY ON MANUAL")))="PFC RELAY ON MANUAL",99,0)))=1,"A1",IF(((O12*(IF((IF(N1=0,"MANUAL CONTROL","AUTO CONTROL"))="MANUAL CONTROL",0,1))*G1*(IF((IF(N1=0,"MANUAL CONTROL","AUTO CONTROL"))="MANUAL CONTROL",0,1))+(IF((IF((((A1*(A1*5))*(G1*(G1*3))+(N1*(N1*1)))*(IF(((A1*(A1*5))*(G1*(G1*3))+(N1*(N1*1)))<15,0,1)))=0,"PFC RELAY OFF",IF((((A1*(A1*5))*(G1*(G1*3))+(N1*(N1*1)))*(IF(((A1*(A1*5))*(G1*(G1*3))+(N1*(N1*1)))<15,0,1)))=16,"PFC RELAY ON AUTO","PFC RELAY ON MANUAL")))="PFC RELAY ON MANUAL",99,0)))*(O12*G1*A1))>90,"M1"," 1")))="A1",1,0)*59)+(IF((IF((O12*(IF((IF(N1=0,"MANUAL CONTROL","AUTO CONTROL"))="MANUAL CONTROL",0,1))*G1*(IF((IF(N1=0,"MANUAL CONTROL","AUTO CONTROL"))="MANUAL CONTROL",0,1))+(IF((IF((((A1*(A1*5))*(G1*(G1*3))+(N1*(N1*1)))*(IF(((A1*(A1*5))*(G1*(G1*3))+(N1*(N1*1)))<15,0,1)))=0,"PFC RELAY OFF",IF((((A1*(A1*5))*(G1*(G1*3))+(N1*(N1*1)))*(IF(((A1*(A1*5))*(G1*(G1*3))+(N1*(N1*1)))<15,0,1)))=16,"PFC RELAY ON AUTO","PFC RELAY ON MANUAL")))="PFC RELAY ON MANUAL",99,0)))=1,"A1",IF(((O12*(IF((IF(N1=0,"MANUAL CONTROL","AUTO CONTROL"))="MANUAL CONTROL",0,1))*G1*(IF((IF(N1=0,"MANUAL CONTROL","AUTO CONTROL"))="MANUAL CONTROL",0,1))+(IF((IF((((A1*(A1*5))*(G1*(G1*3))+(N1*(N1*1)))*(IF(((A1*(A1*5))*(G1*(G1*3))+(N1*(N1*1)))<15,0,1)))=0,"PFC RELAY OFF",IF((((A1*(A1*5))*(G1*(G1*3))+(N1*(N1*1)))*(IF(((A1*(A1*5))*(G1*(G1*3))+(N1*(N1*1)))<15,0,1)))=16,"PFC RELAY ON AUTO","PFC RELAY ON MANUAL")))="PFC RELAY ON MANUAL",99,0)))*(O12*G1*A1))>90,"M1"," 1")))="M1",1,0)*99))=99," K1","K1 ")) -> K1 | CN44: =B1 -> 1 | CV44: =B1 -> 1 | DD44: =E1 -> 1 | DL44: =E1 -> 1 | DS44: 1 | DT44: 1
A45: 32 | B45: 1 | C45: 0 | D45: 0 | E45: 0 | F45: 1 | G45: 1 | H45: 109.5421327 | I45: 165 | J45: 55.45786735 | K45: 0 | L45: 0 | M45: 35 | N45: 0 | O45: 0 | P45: 0 | Q45: 0 | R45: 0 | S45: 0 | T45: 0 | U45: 0 | W45: 48 | X45: =(((U1*T1)*SIN(2*PI()*(1*(V1/50000*(ROW()-1))+W1/360)))) -> 73.34234253 | Y45: -4.468896721 | Z45: 1 | BO45: =BL46+BP46 -> 6 | CF45: =B1*A1*CD56 -> 22.5 | CN45: =C1*A1*CL56 -> 30 | CV45: =D1*A1*CT56 -> 41.25 | DD45: =E1*A1*DB56 -> 48.75 | DL45: =F1*A1*DJ56 -> 52.5 | DS45: 1 | DT45: 1
A46: 33 | B46: 0 | C46: 1 | D46: 1 | E46: 1 | F46: 0 | G46: 0 | H46: 109.5421327 | I46: =B46*$B$13+C46*$C$13+D46*$D$13+E46*$E$13+F46*$F$13+G46*$G$13 -> 70 | J46: 39.54213265 | K46: =IF(J46=$J$13,1,0) -> 0 | L46: 0 | M46: =IF(L46=0,$L$13,L46) -> 35 | N46: =IF((M46/$M$13)=1,1,0) -> 0 | O46: 0 | P46: 0 | Q46: 0 | R46: 0 | S46: 0 | T46: 0 | U46: 0 | W46: 44 | X46: =(((U1*T1)*SIN(2*PI()*(1*(V1/50000*(ROW()-1))+W1/360)))) -> 74.96507113 | Y46: -3.758506685 | Z46: 1 | AJ46: =AJ47*BO42 -> 0 | AQ46: =(AQ47+AJ46)*BO42 -> 1 | AR46: =AQ46 -> 1 | AX46: =AR46+AX47 -> 2 | AY46: =AX46 -> 2 | BE46: =AY46+BE47 -> 2 | BF46: =BE46 -> 2 | BL46: =BL47+BF46+AY46+AR46+AJ46 -> 6 | BP46: =BS47 -> 0 | CD46: =CF42*BW32 -> 1 | CL46: =CN42*BW32 -> 1 | CT46: =CV42 -> 1 | DB46: =DD42 -> 1 | DJ46: =DL42 -> 1 | DS46: 1 | DT46: 1
A47: 34 | B47: 0 | C47: 1 | D47: 1 | E47: 0 | F47: 1 | G47: 0 | H47: 109.5421327 | I47: 110 | J47: 0.4578673465 | K47: 1 | L47: 34 | M47: 34 | N47: 1 | O47: 0 | P47: 1 | Q47: 1 | R47: 0 | S47: 1 | T47: 0 | U47: 1 | W47: 40 | X47: =(((U1*T1)*SIN(2*PI()*(1*(V1/50000*(ROW()-1))+W1/360)))) -> 76.58484024 | Y47: -3.047968269 | Z47: 1 | AJ47: =AJ52*BO42 -> 0 | AQ47: =AQ52*BO42 -> 1 | AX47: =AX52*BO42 -> 1 | BE47: =BE52 -> 0 | BL47: =BL52 -> 1 | BS47: =BS52*BO42 -> 0 | DS47: 1 | DT47: 1
A48: 35 | B48: 0 | C48: 1 | D48: 1 | E48: 0 | F48: 0 | G48: 1 | H48: 109.5421327 | I48: 110 | J48: 0.4578673465 | K48: 1 | L48: 35 | M48: 35 | N48: 0 | O48: 0 | P48: 0 | Q48: 0 | R48: 0 | S48: 0 | T48: 0 | U48: 1 | W48: 36 | X48: =(((U1*T1)*SIN(2*PI()*(1*(V1/50000*(ROW()-1))+W1/360)))) -> 78.20158591 | Y48: -2.337309525 | Z48: 1 | DS48: 1 | DT48: 1
A49: 36 | B49: 0 | C49: 1 | D49: 0 | E49: 1 | F49: 1 | G49: 0 | H49: 109.5421327 | I49: 130 | J49: 20.45786735 | K49: 0 | L49: 0 | M49: 35 | N49: 0 | O49: 0 | P49: 0 | Q49: 0 | R49: 0 | S49: 0 | T49: 0 | U49: 0 | W49: 32 | X49: =(((U1*T1)*SIN(2*PI()*(1*(V1/50000*(ROW()-1))+W1/360)))) -> 79.81524432 | Y49: -1.626558508 | Z49: 1 | AH49: =O12*BO42*BW32 -> 0 | AI49: =AJ49 -> 0 | AJ49: =AH49 -> 0 | AL49: =IF((O12*(IF((IF(N1=0,"MANUAL CONTROL","AUTO CONTROL"))="MANUAL CONTROL",0,1))*G1*(IF((IF(N1=0,"MANUAL CONTROL","AUTO CONTROL"))="MANUAL CONTROL",0,1))+(IF((IF((((A1*(A1*5))*(G1*(G1*3))+(N1*(N1*1)))*(IF(((A1*(A1*5))*(G1*(G1*3))+(N1*(N1*1)))<15,0,1)))=0,"PFC RELAY OFF",IF((((A1*(A1*5))*(G1*(G1*3))+(N1*(N1*1)))*(IF(((A1*(A1*5))*(G1*(G1*3))+(N1*(N1*1)))<15,0,1)))=16,"PFC RELAY ON AUTO","PFC RELAY ON MANUAL")))="PFC RELAY ON MANUAL",99,0)))=1,"A1",IF(((O12*(IF((IF(N1=0,"MANUAL CONTROL","AUTO CONTROL"))="MANUAL CONTROL",0,1))*G1*(IF((IF(N1=0,"MANUAL CONTROL","AUTO CONTROL"))="MANUAL CONTROL",0,1))+(IF((IF((((A1*(A1*5))*(G1*(G1*3))+(N1*(N1*1)))*(IF(((A1*(A1*5))*(G1*(G1*3))+(N1*(N1*1)))<15,0,1)))=0,"PFC RELAY OFF",IF((((A1*(A1*5))*(G1*(G1*3))+(N1*(N1*1)))*(IF(((A1*(A1*5))*(G1*(G1*3))+(N1*(N1*1)))<15,0,1)))=16,"PFC RELAY ON AUTO","PFC RELAY ON MANUAL")))="PFC RELAY ON MANUAL",99,0)))*(O12*G1*A1))>90,"M1"," 1")) -> 1 | AO49: =P12*BO42*BW32 -> 1 | AP49: =AQ49 -> 1 | AQ49: =AO49 -> 1 | AS49: =IF((P12*(IF((IF(N1=0,"MANUAL CONTROL","AUTO CONTROL"))="MANUAL CONTROL",0,1))*G1*(IF((IF(N1=0,"MANUAL CONTROL","AUTO CONTROL"))="MANUAL CONTROL",0,1))+(IF((IF((((A1*(A1*5))*(G1*(G1*3))+(N1*(N1*1)))*(IF(((A1*(A1*5))*(G1*(G1*3))+(N1*(N1*1)))<15,0,1)))=0,"PFC RELAY OFF",IF((((A1*(A1*5))*(G1*(G1*3))+(N1*(N1*1)))*(IF(((A1*(A1*5))*(G1*(G1*3))+(N1*(N1*1)))<15,0,1)))=16,"PFC RELAY ON AUTO","PFC RELAY ON MANUAL")))="PFC RELAY ON MANUAL",99,0)))=1,"A2",IF(((P12*(IF((IF(N1=0,"MANUAL CONTROL","AUTO CONTROL"))="MANUAL CONTROL",0,1))*G1*(IF((IF(N1=0,"MANUAL CONTROL","AUTO CONTROL"))="MANUAL CONTROL",0,1))+(IF((IF((((A1*(A1*5))*(G1*(G1*3))+(N1*(N1*1)))*(IF(((A1*(A1*5))*(G1*(G1*3))+(N1*(N1*1)))<15,0,1)))=0,"PFC RELAY OFF",IF((((A1*(A1*5))*(G1*(G1*3))+(N1*(N1*1)))*(IF(((A1*(A1*5))*(G1*(G1*3))+(N1*(N1*1)))<15,0,1)))=16,"PFC RELAY ON AUTO","PFC RELAY ON MANUAL")))="PFC RELAY ON MANUAL",99,0)))*(P12*G1*A1))>90,"M2"," 2")) -> A2 | AV49: =Q12*BO42*BW32 -> 1 | AW49: =AX49 -> 1 | AX49: =AV49 -> 1 | AZ49: =IF((Q12*(IF((IF(N1=0,"MANUAL CONTROL","AUTO CONTROL"))="MANUAL CONTROL",0,1))*G1*(IF((IF(N1=0,"MANUAL CONTROL","AUTO CONTROL"))="MANUAL CONTROL",0,1))+(IF((IF((((A1*(A1*5))*(G1*(G1*3))+(N1*(N1*1)))*(IF(((A1*(A1*5))*(G1*(G1*3))+(N1*(N1*1)))<15,0,1)))=0,"PFC RELAY OFF",IF((((A1*(A1*5))*(G1*(G1*3))+(N1*(N1*1)))*(IF(((A1*(A1*5))*(G1*(G1*3))+(N1*(N1*1)))<15,0,1)))=16,"PFC RELAY ON AUTO","PFC RELAY ON MANUAL")))="PFC RELAY ON MANUAL",99,0)))=1,"A3",IF(((Q12*(IF((IF(N1=0,"MANUAL CONTROL","AUTO CONTROL"))="MANUAL CONTROL",0,1))*G1*(IF((IF(N1=0,"MANUAL CONTROL","AUTO CONTROL"))="MANUAL CONTROL",0,1))+(IF((IF((((A1*(A1*5))*(G1*(G1*3))+(N1*(N1*1)))*(IF(((A1*(A1*5))*(G1*(G1*3))+(N1*(N1*1)))<15,0,1)))=0,"PFC RELAY OFF",IF((((A1*(A1*5))*(G1*(G1*3))+(N1*(N1*1)))*(IF(((A1*(A1*5))*(G1*(G1*3))+(N1*(N1*1)))<15,0,1)))=16,"PFC RELAY ON AUTO","PFC RELAY ON MANUAL")))="PFC RELAY ON MANUAL",99,0)))*(Q12*G1*A1))>90,"M3"," 3")) -> A3 | BC49: =R12*BO42*BW32 -> 0 | BD49: =BC49 -> 0 | BE49: =BC49 -> 0 | BG49: =IF((R12*(IF((IF(N1=0,"MANUAL CONTROL","AUTO CONTROL"))="MANUAL CONTROL",0,1))*G1*(IF((IF(N1=0,"MANUAL CONTROL","AUTO CONTROL"))="MANUAL CONTROL",0,1))+(IF((IF((((A1*(A1*5))*(G1*(G1*3))+(N1*(N1*1)))*(IF(((A1*(A1*5))*(G1*(G1*3))+(N1*(N1*1)))<15,0,1)))=0,"PFC RELAY OFF",IF((((A1*(A1*5))*(G1*(G1*3))+(N1*(N1*1)))*(IF(((A1*(A1*5))*(G1*(G1*3))+(N1*(N1*1)))<15,0,1)))=16,"PFC RELAY ON AUTO","PFC RELAY ON MANUAL")))="PFC RELAY ON MANUAL",99,0)))=1,"A4",IF(((R12*(IF((IF(N1=0,"MANUAL CONTROL","AUTO CONTROL"))="MANUAL CONTROL",0,1))*G1*(IF((IF(N1=0,"MANUAL CONTROL","AUTO CONTROL"))="MANUAL CONTROL",0,1))+(IF((IF((((A1*(A1*5))*(G1*(G1*3))+(N1*(N1*1)))*(IF(((A1*(A1*5))*(G1*(G1*3))+(N1*(N1*1)))<15,0,1)))=0,"PFC RELAY OFF",IF((((A1*(A1*5))*(G1*(G1*3))+(N1*(N1*1)))*(IF(((A1*(A1*5))*(G1*(G1*3))+(N1*(N1*1)))<15,0,1)))=16,"PFC RELAY ON AUTO","PFC RELAY ON MANUAL")))="PFC RELAY ON MANUAL",99,0)))*(R12*G1*A1))>90,"M4"," 4")) -> 4 | BJ49: =S12*BO42*BW32 -> 1 | BK49: =BJ49 -> 1 | BL49: =BJ49 -> 1 | BN49: =IF((S12*(IF((IF(N1=0,"MANUAL CONTROL","AUTO CONTROL"))="MANUAL CONTROL",0,1))*G1*(IF((IF(N1=0,"MANUAL CONTROL","AUTO CONTROL"))="MANUAL CONTROL",0,1))+(IF((IF((((A1*(A1*5))*(G1*(G1*3))+(N1*(N1*1)))*(IF(((A1*(A1*5))*(G1*(G1*3))+(N1*(N1*1)))<15,0,1)))=0,"PFC RELAY OFF",IF((((A1*(A1*5))*(G1*(G1*3))+(N1*(N1*1)))*(IF(((A1*(A1*5))*(G1*(G1*3))+(N1*(N1*1)))<15,0,1)))=16,"PFC RELAY ON AUTO","PFC RELAY ON MANUAL")))="PFC RELAY ON MANUAL",99,0)))=1,"A5",IF(((S12*(IF((IF(N1=0,"MANUAL CONTROL","AUTO CONTROL"))="MANUAL CONTROL",0,1))*G1*(IF((IF(N1=0,"MANUAL CONTROL","AUTO CONTROL"))="MANUAL CONTROL",0,1))+(IF((IF((((A1*(A1*5))*(G1*(G1*3))+(N1*(N1*1)))*(IF(((A1*(A1*5))*(G1*(G1*3))+(N1*(N1*1)))<15,0,1)))=0,"PFC RELAY OFF",IF((((A1*(A1*5))*(G1*(G1*3))+(N1*(N1*1)))*(IF(((A1*(A1*5))*(G1*(G1*3))+(N1*(N1*1)))<15,0,1)))=16,"PFC RELAY ON AUTO","PFC RELAY ON MANUAL")))="PFC RELAY ON MANUAL",99,0)))*(S12*G1*A1))>90,"M5"," 5")) -> A5 | BQ49: =T12*BO42*BW32 -> 0 | BR49: =BQ49 -> 0 | BS49: =BQ49 -> 0 | BU49: =IF((T12*(IF((IF(N1=0,"MANUAL CONTROL","AUTO CONTROL"))="MANUAL CONTROL",0,1))*G1*(IF((IF(N1=0,"MANUAL CONTROL","AUTO CONTROL"))="MANUAL CONTROL",0,1))+(IF((IF((((A1*(A1*5))*(G1*(G1*3))+(N1*(N1*1)))*(IF(((A1*(A1*5))*(G1*(G1*3))+(N1*(N1*1)))<15,0,1)))=0,"PFC RELAY OFF",IF((((A1*(A1*5))*(G1*(G1*3))+(N1*(N1*1)))*(IF(((A1*(A1*5))*(G1*(G1*3))+(N1*(N1*1)))<15,0,1)))=16,"PFC RELAY ON AUTO","PFC RELAY ON MANUAL")))="PFC RELAY ON MANUAL",99,0)))=1,"A6",IF(((T12*(IF((IF(N1=0,"MANUAL CONTROL","AUTO CONTROL"))="MANUAL CONTROL",0,1))*G1*(IF((IF(N1=0,"MANUAL CONTROL","AUTO CONTROL"))="MANUAL CONTROL",0,1))+(IF((IF((((A1*(A1*5))*(G1*(G1*3))+(N1*(N1*1)))*(IF(((A1*(A1*5))*(G1*(G1*3))+(N1*(N1*1)))<15,0,1)))=0,"PFC RELAY OFF",IF((((A1*(A1*5))*(G1*(G1*3))+(N1*(N1*1)))*(IF(((A1*(A1*5))*(G1*(G1*3))+(N1*(N1*1)))<15,0,1)))=16,"PFC RELAY ON AUTO","PFC RELAY ON MANUAL")))="PFC RELAY ON MANUAL",99,0)))*(T12*G1*A1))>90,"M6"," 6")) -> 6 | CD49: =IF(B1*A1*A1=1,"ON","OFF") -> ON | CL49: =IF(C1*A1*A1=1,"ON","OFF") -> ON | CT49: =IF(D1*A1*A1=1,"ON","OFF") -> ON | DB49: =IF(E1*A1*A1=1,"ON","OFF") -> ON | DJ49: =IF(F1*A1*A1=1,"ON","OFF") -> ON | DS49: 1 | DT49: 1
A50: 37 | B50: 0 | C50: 1 | D50: 0 | E50: 1 | F50: 0 | G50: 1 | H50: 109.5421327 | I50: 130 | J50: 20.45786735 | K50: 0 | L50: 0 | M50: 35 | N50: 0 | O50: 0 | P50: 0 | Q50: 0 | R50: 0 | S50: 0 | T50: 0 | U50: 0 | W50: 28 | X50: =(((U1*T1)*SIN(2*PI()*(1*(V1/50000*(ROW()-1))+W1/360)))) -> 81.42575176 | Y50: -0.9157432777 | Z50: 1 | AH50: =AH49 -> 0 | AJ50: =AJ49 -> 0 | AQ50: =AQ49 -> 1 | AX50: =AV49 -> 1 | BC50: =BC49*BO42 -> 0 | BE50: =BC49 -> 0 | BJ50: =BJ49 -> 1 | BL50: =BJ49 -> 1 | BQ50: =BQ49 -> 0 | BS50: =BQ49 -> 0 | CD50: 30 | CL50: 40 | CT50: 55 | DB50: 65 | DJ50: 70 | DS50: 1 | DT50: 1
A51: 38 | B51: 0 | C51: 1 | D51: 0 | E51: 0 | F51: 1 | G51: 1 | H51: 109.5421327 | I51: 170 | J51: 60.45786735 | K51: 0 | L51: 0 | M51: 35 | N51: 0 | O51: 0 | P51: 0 | Q51: 0 | R51: 0 | S51: 0 | T51: 0 | U51: 0 | W51: 24 | X51: =(((U1*T1)*SIN(2*PI()*(1*(V1/50000*(ROW()-1))+W1/360)))) -> 83.03304465 | Y51: -0.2048918949 | Z51: 1 | AQ51: =AO49 -> 1 | AX51: =$G$1 -> 1 | BE51: =$G$1 -> 1 | BL51: =$G$1 -> 1 | BS51: =$G$1 -> 1 | DS51: 1 | DT51: 1
A52: 39 | B52: 0 | C52: 0 | D52: 1 | E52: 1 | F52: 1 | G52: 0 | H52: 109.5421327 | I52: 140 | J52: 30.45786735 | K52: 0 | L52: 0 | M52: 35 | N52: 0 | O52: 0 | P52: 0 | Q52: 0 | R52: 0 | S52: 0 | T52: 0 | U52: 0 | W52: 20 | X52: =(((U1*T1)*SIN(2*PI()*(1*(V1/50000*(ROW()-1))+W1/360)))) -> 84.63705953 | Y52: 0.5059675766 | Z52: 1 | AJ52: =AH53*BO42 -> 0 | AQ52: =AO53*BO42 -> 1 | AX52: =AV53*BO42 -> 1 | BE52: =BC53 -> 0 | BL52: =IF((IF((BL49*A1)=1,"ON","OFF"))="ON",1,0)*BO42 -> 1 | BS52: =IF((IF((BS49*A1)=1,"ON","OFF"))="ON",1,0)*BO42 -> 0 | CD52: CosF | CH52: 0.8 | CL52: CosF | CP52: 0.8 | CT52: CosF | CX52: 0.8 | DB52: CosF | DF52: 0.8 | DJ52: CosF | DN52: 0.8 | DS52: 1 | DT52: 1
A53: 40 | B53: 0 | C53: 0 | D53: 1 | E53: 1 | F53: 0 | G53: 1 | H53: 109.5421327 | I53: 140 | J53: 30.45786735 | K53: 0 | L53: 0 | M53: 35 | N53: 0 | O53: 0 | P53: 0 | Q53: 0 | R53: 0 | S53: 0 | T53: 0 | U53: 0 | W53: 16 | X53: =(((U1*T1)*SIN(2*PI()*(1*(V1/50000*(ROW()-1))+W1/360)))) -> 86.23773309 | Y53: 1.216807073 | Z53: 1 | AH53: =(IF((IF((AJ49*$BW$32)=1,"ON","OFF"))="ON",1,0))*BO42 -> 0 | AO53: =(IF((IF((AQ49*A1)=1,"ON","OFF"))="ON",1,0))*BO42 -> 1 | AV53: =IF((IF((AX49*A1)=1,"ON","OFF"))="ON",1,0)*BO42 -> 1 | BC53: =IF((IF((BE49*A1)=1,"ON","OFF"))="ON",1,0)*BO42 -> 0 | BJ53: =IF((IF((BL49*A1)=1,"ON","OFF"))="ON",1,0)*BO42 -> 1 | BQ53: =IF((IF((BS49*A1)=1,"ON","OFF"))="ON",1,0)*BO42 -> 0 | DS53: 1 | DT53: 1
A54: 41 | B54: 0 | C54: 0 | D54: 1 | E54: 0 | F54: 1 | G54: 1 | H54: 109.5421327 | I54: 180 | J54: 70.45786735 | K54: 0 | L54: 0 | M54: 35 | N54: 0 | O54: 0 | P54: 0 | Q54: 0 | R54: 0 | S54: 0 | T54: 0 | U54: 0 | W54: 12 | X54: =(((U1*T1)*SIN(2*PI()*(1*(V1/50000*(ROW()-1))+W1/360)))) -> 87.83500213 | Y54: 1.927598533 | Z54: 1 | CD54: =CD50/CH52 -> 37.5 | CL54: =CL50/CP52 -> 50 | CT54: =CT50/CX52 -> 68.75 | DB54: =DB50/DF52 -> 81.25 | DJ54: =DJ50/DN52 -> 87.5 | DS54: 1 | DT54: 1
A55: 42 | B55: 0 | C55: 0 | D55: 0 | E55: 1 | F55: 1 | G55: 1 | H55: 109.5421327 | I55: 200 | J55: 90.45786735 | K55: 0 | L55: 0 | M55: 35 | N55: 0 | O55: 0 | P55: 0 | Q55: 0 | R55: 0 | S55: 0 | T55: 0 | U55: 0 | W55: 8 | X55: =(((U1*T1)*SIN(2*PI()*(1*(V1/50000*(ROW()-1))+W1/360)))) -> 89.4288036 | Y55: 2.638313894 | Z55: 1 | AH55: 5 | AO55: 10 | AV55: 20 | BC55: 40 | BJ55: 80 | BQ55: 80 | DS55: 1 | DT55: 1
A56: 43 | B56: 1 | C56: 1 | D56: 1 | E56: 1 | F56: 0 | G56: 0 | H56: 109.5421327 | I56: 75 | J56: 34.54213265 | K56: 0 | L56: 0 | M56: 35 | N56: 0 | O56: 0 | P56: 0 | Q56: 0 | R56: 0 | S56: 0 | T56: 0 | U56: 0 | W56: 4 | X56: =(((U1*T1)*SIN(2*PI()*(1*(V1/50000*(ROW()-1))+W1/360)))) -> 91.01907457 | Y56: 3.348925099 | Z56: 1 | CD56: =SQRT(CD54^2-CD50^2) -> 22.5 | CL56: =SQRT(CL54^2-CL50^2) -> 30 | CT56: =SQRT(CT54^2-CT50^2) -> 41.25 | DB56: =SQRT(DB54^2-DB50^2) -> 48.75 | DJ56: =SQRT(DJ54^2-DJ50^2) -> 52.5 | DS56: 1 | DT56: 1
A57: 44 | B57: 1 | C57: 1 | D57: 1 | E57: 0 | F57: 1 | G57: 0 | H57: 109.5421327 | I57: 115 | J57: 5.457867347 | K57: 0 | L57: 0 | M57: 35 | N57: 0 | O57: 0 | P57: 0 | Q57: 0 | R57: 0 | S57: 0 | T57: 0 | U57: 0 | W57: 0 | X57: =(((U1*T1)*SIN(2*PI()*(1*(V1/50000*(ROW()-1))+W1/360)))) -> 92.60575226 | Y57: 4.059404094 | Z57: 1 | DS57: 1 | DT57: 1
A58: 45 | B58: 1 | C58: 1 | D58: 1 | E58: 0 | F58: 0 | G58: 1 | H58: 109.5421327 | I58: 115 | J58: 5.457867347 | K58: 0 | L58: 0 | M58: 35 | N58: 0 | O58: 0 | P58: 0 | Q58: 0 | R58: 0 | S58: 0 | T58: 0 | U58: 0 | X58: =(((U1*T1)*SIN(2*PI()*(1*(V1/50000*(ROW()-1))+W1/360)))) -> 94.18877404 | Y58: 4.76972283 | Z58: 1 | DK58: Kazim Topaloglu 20.03.2025 | DS58: 1 | DT58: 1
A59: 46 | B59: 1 | C59: 1 | D59: 0 | E59: 1 | F59: 1 | G59: 0 | H59: 109.5421327 | I59: 135 | J59: 25.45786735 | K59: 0 | L59: 0 | M59: 35 | N59: 0 | O59: 0 | P59: 0 | Q59: 0 | R59: 0 | S59: 0 | T59: 0 | U59: 0 | X59: =(((U1*T1)*SIN(2*PI()*(1*(V1/50000*(ROW()-1))+W1/360)))) -> 95.76807741 | Y59: 5.479853267 | Z59: 1
A60: 47 | B60: 1 | C60: 1 | D60: 0 | E60: 1 | F60: 0 | G60: 1 | H60: 109.5421327 | I60: 135 | J60: 25.45786735 | K60: 0 | L60: 0 | M60: 35 | N60: 0 | O60: 0 | P60: 0 | Q60: 0 | R60: 0 | S60: 0 | T60: 0 | U60: 0 | X60: =(((U1*T1)*SIN(2*PI()*(1*(V1/50000*(ROW()-1))+W1/360)))) -> 97.34360001 | Y60: 6.189767368 | Z60: 1
A61: 48 | B61: 1 | C61: 1 | D61: 0 | E61: 0 | F61: 1 | G61: 1 | H61: 109.5421327 | I61: 175 | J61: 65.45786735 | K61: 0 | L61: 0 | M61: 35 | N61: 0 | O61: 0 | P61: 0 | Q61: 0 | R61: 0 | S61: 0 | T61: 0 | U61: 0 | X61: =(((U1*T1)*SIN(2*PI()*(1*(V1/50000*(ROW()-1))+W1/360)))) -> 98.91527966 | Y61: 6.899437107 | Z61: 1
A62: 49 | B62: 1 | C62: 0 | D62: 1 | E62: 1 | F62: 1 | G62: 0 | H62: 109.5421327 | I62: 145 | J62: 35.45786735 | K62: 0 | L62: 0 | M62: 35 | N62: 0 | O62: 0 | P62: 0 | Q62: 0 | R62: 0 | S62: 0 | T62: 0 | U62: 0 | X62: =(((U1*T1)*SIN(2*PI()*(1*(V1/50000*(ROW()-1))+W1/360)))) -> 100.4830543 | Y62: 7.608834469 | Z62: 1
A63: 50 | B63: 1 | C63: 0 | D63: 1 | E63: 1 | F63: 0 | G63: 1 | H63: 109.5421327 | I63: 145 | J63: 35.45786735 | K63: 0 | L63: 0 | M63: 35 | N63: 0 | O63: 0 | P63: 0 | Q63: 0 | R63: 0 | S63: 0 | T63: 0 | U63: 0 | X63: =(((U1*T1)*SIN(2*PI()*(1*(V1/50000*(ROW()-1))+W1/360)))) -> 102.046862 | Y63: 8.317931447 | Z63: 1
A64: 51 | B64: 1 | C64: 0 | D64: 1 | E64: 0 | F64: 1 | G64: 1 | H64: 109.5421327 | I64: 185 | J64: 75.45786735 | K64: 0 | L64: 0 | M64: 35 | N64: 0 | O64: 0 | P64: 0 | Q64: 0 | R64: 0 | S64: 0 | T64: 0 | U64: 0 | X64: =(((U1*T1)*SIN(2*PI()*(1*(V1/50000*(ROW()-1))+W1/360)))) -> 103.6066411 | Y64: 9.026700047 | Z64: 1
A65: 52 | B65: 1 | C65: 0 | D65: 0 | E65: 1 | F65: 1 | G65: 1 | H65: 109.5421327 | I65: 205 | J65: 95.45786735 | K65: 0 | L65: 0 | M65: 35 | N65: 0 | O65: 0 | P65: 0 | Q65: 0 | R65: 0 | S65: 0 | T65: 0 | U65: 0 | X65: =(((U1*T1)*SIN(2*PI()*(1*(V1/50000*(ROW()-1))+W1/360)))) -> 105.16233 | Y65: =((($U$2*$T$2)*SIN(2*PI()*(1*($V$2/50000*(ROW()-1))+(((((-Z65)*DEGREES(ACOS($W$2)))+$W$1))*($V$2/$V$1))/360)))) -> 9.735112289 | Z65: 1
A66: 53 | B66: 0 | C66: 1 | D66: 1 | E66: 1 | F66: 1 | G66: 0 | H66: 109.5421327 | I66: 150 | J66: 40.45786735 | K66: 0 | L66: 0 | M66: 35 | N66: 0 | O66: 0 | P66: 0 | Q66: 0 | R66: 0 | S66: 0 | T66: 0 | U66: 0 | X66: =(((U1*T1)*SIN(2*PI()*(1*(V1/50000*(ROW()-1))+W1/360)))) -> 106.7138673 | Y66: 10.4431402 | Z66: 1
A67: 54 | B67: 0 | C67: 1 | D67: 1 | E67: 1 | F67: 0 | G67: 1 | H67: 109.5421327 | I67: 150 | J67: 40.45786735 | K67: 0 | L67: 0 | M67: 35 | N67: 0 | O67: 0 | P67: 0 | Q67: 0 | R67: 0 | S67: 0 | T67: 0 | U67: 0 | X67: =(((U1*T1)*SIN(2*PI()*(1*(V1/50000*(ROW()-1))+W1/360)))) -> 108.2611917 | Y67: 11.15075584 | Z67: =Z66 -> 1
A68: 55 | B68: 0 | C68: 1 | D68: 1 | E68: 0 | F68: 1 | G68: 1 | H68: 109.5421327 | I68: 190 | J68: 80.45786735 | K68: 0 | L68: 0 | M68: 35 | N68: 0 | O68: 0 | P68: 0 | Q68: 0 | R68: 0 | S68: 0 | T68: 0 | U68: 0 | X68: =(((U1*T1)*SIN(2*PI()*(1*(V1/50000*(ROW()-1))+W1/360)))) -> 109.8042421 | Y68: 11.85793127 | Z68: 1
A69: 56 | B69: 0 | C69: 1 | D69: 0 | E69: 1 | F69: 1 | G69: 1 | H69: 109.5421327 | I69: 210 | J69: 100.4578673 | K69: 0 | L69: 0 | M69: 35 | N69: 0 | O69: 0 | P69: 0 | Q69: 0 | R69: 0 | S69: 0 | T69: 0 | U69: 0 | X69: =(((U1*T1)*SIN(2*PI()*(1*(V1/50000*(ROW()-1))+W1/360)))) -> 111.3429576 | Y69: 12.56463856 | Z69: 1
A70: 57 | B70: 0 | C70: 0 | D70: 1 | E70: 1 | F70: 1 | G70: 1 | H70: 109.5421327 | I70: 220 | J70: 110.4578673 | K70: 0 | L70: 0 | M70: 35 | N70: 0 | O70: 0 | P70: 0 | Q70: 0 | R70: 0 | S70: 0 | T70: 0 | U70: 0 | X70: =(((U1*T1)*SIN(2*PI()*(1*(V1/50000*(ROW()-1))+W1/360)))) -> 112.8772776 | Y70: 13.27084983 | Z70: 1
A71: 58 | B71: 1 | C71: 1 | D71: 1 | E71: 1 | F71: 1 | G71: 0 | H71: 109.5421327 | I71: 155 | J71: 45.45786735 | K71: 0 | L71: 0 | M71: 35 | N71: 0 | O71: 0 | P71: 0 | Q71: 0 | R71: 0 | S71: 0 | T71: 0 | U71: 0 | X71: =(((U1*T1)*SIN(2*PI()*(1*(V1/50000*(ROW()-1))+W1/360)))) -> 114.4071413 | Y71: 13.97653718 | Z71: 1
A72: 59 | B72: 1 | C72: 1 | D72: 1 | E72: 1 | F72: 0 | G72: 1 | H72: 109.5421327 | I72: 155 | J72: 45.45786735 | K72: 0 | L72: 0 | M72: 35 | N72: 0 | O72: 0 | P72: 0 | Q72: 0 | R72: 0 | S72: 0 | T72: 0 | U72: 0 | X72: =(((U1*T1)*SIN(2*PI()*(1*(V1/50000*(ROW()-1))+W1/360)))) -> 115.9324884 | Y72: 14.68167277 | Z72: 1
A73: 60 | B73: 1 | C73: 1 | D73: 1 | E73: 0 | F73: 1 | G73: 1 | H73: 109.5421327 | I73: 195 | J73: 85.45786735 | K73: 0 | L73: 0 | M73: 35 | N73: 0 | O73: 0 | P73: 0 | Q73: 0 | R73: 0 | S73: 0 | T73: 0 | U73: 0 | X73: =(((U1*T1)*SIN(2*PI()*(1*(V1/50000*(ROW()-1))+W1/360)))) -> 117.4532586 | Y73: 15.38622875 | Z73: 1
A74: 61 | B74: 1 | C74: 1 | D74: 0 | E74: 1 | F74: 1 | G74: 1 | H74: 109.5421327 | I74: 215 | J74: 105.4578673 | K74: 0 | L74: 0 | M74: 35 | N74: 0 | O74: 0 | P74: 0 | Q74: 0 | R74: 0 | S74: 0 | T74: 0 | U74: 0 | X74: =(((U1*T1)*SIN(2*PI()*(1*(V1/50000*(ROW()-1))+W1/360)))) -> 118.9693921 | Y74: 16.0901773 | Z74: 1
A75: 62 | B75: 1 | C75: 0 | D75: 1 | E75: 1 | F75: 1 | G75: 1 | H75: 109.5421327 | I75: 225 | J75: 115.4578673 | K75: 0 | L75: 0 | M75: 35 | N75: 0 | O75: 0 | P75: 0 | Q75: 0 | R75: 0 | S75: 0 | T75: 0 | U75: 0 | X75: =(((U1*T1)*SIN(2*PI()*(1*(V1/50000*(ROW()-1))+W1/360)))) -> 120.4808288 | Y75: 16.79349064 | Z75: 1
A76: 63 | B76: 0 | C76: 1 | D76: 1 | E76: 1 | F76: 1 | G76: 1 | H76: 109.5421327 | I76: 230 | J76: 120.4578673 | K76: 0 | L76: 0 | M76: 35 | N76: 0 | O76: 0 | P76: 0 | Q76: 0 | R76: 0 | S76: 0 | T76: 0 | U76: 0 | X76: =(((U1*T1)*SIN(2*PI()*(1*(V1/50000*(ROW()-1))+W1/360)))) -> 121.9875092 | Y76: 17.49614101 | Z76: 1
A77: 64 | B77: 1 | C77: 1 | D77: 1 | E77: 1 | F77: 1 | G77: 1 | H77: 109.5421327 | I77: 235 | J77: 125.4578673 | K77: 0 | L77: 0 | M77: 35 | N77: 0 | O77: 0 | P77: 0 | Q77: 0 | R77: 0 | S77: 0 | T77: 0 | U77: 0 | X77: =(((U1*T1)*SIN(2*PI()*(1*(V1/50000*(ROW()-1))+W1/360)))) -> 123.4893737 | Y77: 18.19810065 | Z77: 1
X78: =(((U1*T1)*SIN(2*PI()*(1*(V1/50000*(ROW()-1))+W1/360)))) -> 124.986363 | Y78: 18.89934187 | Z78: 1
X79: =(((U1*T1)*SIN(2*PI()*(1*(V1/50000*(ROW()-1))+W1/360)))) -> 126.4784181 | Y79: 19.59983697 | Z79: 1
X80: =(((U1*T1)*SIN(2*PI()*(1*(V1/50000*(ROW()-1))+W1/360)))) -> 127.96548 | Y80: 20.29955831 | Z80: 1
X81: =(((U1*T1)*SIN(2*PI()*(1*(V1/50000*(ROW()-1))+W1/360)))) -> 129.4474901 | Y81: 20.99847825 | Z81: 1
X82: =(((U1*T1)*SIN(2*PI()*(1*(V1/50000*(ROW()-1))+W1/360)))) -> 130.9243899 | Y82: 21.69656921 | Z82: 1
X83: =(((U1*T1)*SIN(2*PI()*(1*(V1/50000*(ROW()-1))+W1/360)))) -> 132.3961209 | Y83: 22.39380363 | Z83: 1
X84: =(((U1*T1)*SIN(2*PI()*(1*(V1/50000*(ROW()-1))+W1/360)))) -> 133.8626252 | Y84: 23.09015398 | Z84: 1
X85: =(((U1*T1)*SIN(2*PI()*(1*(V1/50000*(ROW()-1))+W1/360)))) -> 135.3238448 | Y85: 23.78559276 | Z85: 1
X86: =(((U1*T1)*SIN(2*PI()*(1*(V1/50000*(ROW()-1))+W1/360)))) -> 136.7797221 | Y86: 24.48009253 | Z86: 1
X87: =(((U1*T1)*SIN(2*PI()*(1*(V1/50000*(ROW()-1))+W1/360)))) -> 138.2301995 | Y87: 25.17362588 | Z87: 1
X88: =(((U1*T1)*SIN(2*PI()*(1*(V1/50000*(ROW()-1))+W1/360)))) -> 139.6752198 | Y88: 25.8661654 | Z88: 1
X89: =(((U1*T1)*SIN(2*PI()*(1*(V1/50000*(ROW()-1))+W1/360)))) -> 141.114726 | Y89: 26.55768378 | Z89: 1
X90: =(((U1*T1)*SIN(2*PI()*(1*(V1/50000*(ROW()-1))+W1/360)))) -> 142.5486612 | Y90: 27.24815371 | Z90: 1
X91: =(((U1*T1)*SIN(2*PI()*(1*(V1/50000*(ROW()-1))+W1/360)))) -> 143.9769689 | Y91: 27.93754792 | Z91: 1
X92: =(((U1*T1)*SIN(2*PI()*(1*(V1/50000*(ROW()-1))+W1/360)))) -> 145.3995926 | Y92: 28.62583921 | Z92: 1
X93: =(((U1*T1)*SIN(2*PI()*(1*(V1/50000*(ROW()-1))+W1/360)))) -> 146.8164762 | Y93: 29.3130004 | Z93: 1
X94: =(((U1*T1)*SIN(2*PI()*(1*(V1/50000*(ROW()-1))+W1/360)))) -> 148.2275637 | Y94: 29.99900436 | Z94: 1
X95: =(((U1*T1)*SIN(2*PI()*(1*(V1/50000*(ROW()-1))+W1/360)))) -> 149.6327994 | Y95: 30.68382401 | Z95: 1
X96: =(((U1*T1)*SIN(2*PI()*(1*(V1/50000*(ROW()-1))+W1/360)))) -> 151.0321279 | Y96: 31.36743232 | Z96: 1
X97: =(((U1*T1)*SIN(2*PI()*(1*(V1/50000*(ROW()-1))+W1/360)))) -> 152.4254939 | Y97: 32.0498023 | Z97: 1
X98: =(((U1*T1)*SIN(2*PI()*(1*(V1/50000*(ROW()-1))+W1/360)))) -> 153.8128424 | Y98: 32.730907 | Z98: 1
X99: =(((U1*T1)*SIN(2*PI()*(1*(V1/50000*(ROW()-1))+W1/360)))) -> 155.1941186 | Y99: 33.41071954 | Z99: 1
X100: =(((U1*T1)*SIN(2*PI()*(1*(V1/50000*(ROW()-1))+W1/360)))) -> 156.569268 | Y100: 34.08921309 | Z100: 1
X101: =(((U1*T1)*SIN(2*PI()*(1*(V1/50000*(ROW()-1))+W1/360)))) -> 157.9382364 | Y101: 34.76636085 | Z101: 1
X102: =(((U1*T1)*SIN(2*PI()*(1*(V1/50000*(ROW()-1))+W1/360)))) -> 159.3009696 | Y102: 35.4421361 | Z102: 1
X103: =(((U1*T1)*SIN(2*PI()*(1*(V1/50000*(ROW()-1))+W1/360)))) -> 160.6574138 | Y103: 36.11651215 | Z103: 1
X104: =(((U1*T1)*SIN(2*PI()*(1*(V1/50000*(ROW()-1))+W1/360)))) -> 162.0075157 | Y104: 36.78946238 | Z104: 1
X105: =(((U1*T1)*SIN(2*PI()*(1*(V1/50000*(ROW()-1))+W1/360)))) -> 163.3512217 | Y105: 37.46096023 | Z105: 1
X106: =(((U1*T1)*SIN(2*PI()*(1*(V1/50000*(ROW()-1))+W1/360)))) -> 164.6884789 | Y106: 38.13097918 | Z106: 1
X107: =(((U1*T1)*SIN(2*PI()*(1*(V1/50000*(ROW()-1))+W1/360)))) -> 166.0192345 | Y107: 38.79949279 | Z107: 1
X108: =(((U1*T1)*SIN(2*PI()*(1*(V1/50000*(ROW()-1))+W1/360)))) -> 167.3434359 | Y108: 39.46647466 | Z108: 1
X109: =(((U1*T1)*SIN(2*PI()*(1*(V1/50000*(ROW()-1))+W1/360)))) -> 168.6610309 | Y109: 40.13189846 | Z109: 1
X110: =(((U1*T1)*SIN(2*PI()*(1*(V1/50000*(ROW()-1))+W1/360)))) -> 169.9719674 | Y110: 40.79573792 | Z110: 1
X111: =(((U1*T1)*SIN(2*PI()*(1*(V1/50000*(ROW()-1))+W1/360)))) -> 171.2761937 | Y111: 41.45796684 | Z111: 1
X112: =(((U1*T1)*SIN(2*PI()*(1*(V1/50000*(ROW()-1))+W1/360)))) -> 172.5736584 | Y112: 42.11855907 | Z112: 1
X113: =(((U1*T1)*SIN(2*PI()*(1*(V1/50000*(ROW()-1))+W1/360)))) -> 173.8643101 | Y113: 42.77748852 | Z113: 1
X114: =(((U1*T1)*SIN(2*PI()*(1*(V1/50000*(ROW()-1))+W1/360)))) -> 175.148098 | Y114: 43.4347292 | Z114: 1
X115: =(((U1*T1)*SIN(2*PI()*(1*(V1/50000*(ROW()-1))+W1/360)))) -> 176.4249713 | Y115: 44.09025515 | Z115: 1
X116: =(((U1*T1)*SIN(2*PI()*(1*(V1/50000*(ROW()-1))+W1/360)))) -> 177.6948797 | Y116: 44.74404049 | Z116: 1
X117: =(((U1*T1)*SIN(2*PI()*(1*(V1/50000*(ROW()-1))+W1/360)))) -> 178.957773 | Y117: 45.39605941 | Z117: 1
X118: =(((U1*T1)*SIN(2*PI()*(1*(V1/50000*(ROW()-1))+W1/360)))) -> 180.2136013 | Y118: 46.04628617 | Z118: 1
X119: =(((U1*T1)*SIN(2*PI()*(1*(V1/50000*(ROW()-1))+W1/360)))) -> 181.4623151 | Y119: 46.69469511 | Z119: 1
X120: =(((U1*T1)*SIN(2*PI()*(1*(V1/50000*(ROW()-1))+W1/360)))) -> 182.7038651 | Y120: 47.34126062 | Z120: 1
X121: =(((U1*T1)*SIN(2*PI()*(1*(V1/50000*(ROW()-1))+W1/360)))) -> 183.9382022 | Y121: 47.98595717 | Z121: 1
X122: =(((U1*T1)*SIN(2*PI()*(1*(V1/50000*(ROW()-1))+W1/360)))) -> 185.1652778 | Y122: 48.62875932 | Z122: 1
X123: =(((U1*T1)*SIN(2*PI()*(1*(V1/50000*(ROW()-1))+W1/360)))) -> 186.3850434 | Y123: 49.2696417 | Z123: 1
X124: =(((U1*T1)*SIN(2*PI()*(1*(V1/50000*(ROW()-1))+W1/360)))) -> 187.5974508 | Y124: 49.90857899 | Z124: 1
X125: =(((U1*T1)*SIN(2*PI()*(1*(V1/50000*(ROW()-1))+W1/360)))) -> 188.8024522 | Y125: 50.54554597 | Z125: 1
X126: =(((U1*T1)*SIN(2*PI()*(1*(V1/50000*(ROW()-1))+W1/360)))) -> 190 | Y126: 51.18051751 | Z126: 1
X127: =(((U1*T1)*SIN(2*PI()*(1*(V1/50000*(ROW()-1))+W1/360)))) -> 191.1900469 | Y127: 51.81346852 | Z127: 1
X128: =(((U1*T1)*SIN(2*PI()*(1*(V1/50000*(ROW()-1))+W1/360)))) -> 192.372546 | Y128: 52.44437403 | Z128: 1
X129: =(((U1*T1)*SIN(2*PI()*(1*(V1/50000*(ROW()-1))+W1/360)))) -> 193.5474505 | Y129: =((($U$2*$T$2)*SIN(2*PI()*(1*($V$2/50000*(ROW()-1))+(((((-Z129)*DEGREES(ACOS($W$2)))+$W$1))*($V$2/$V$1))/360)))) -> 53.07320913 | Z129: 1
X130: =(((U1*T1)*SIN(2*PI()*(1*(V1/50000*(ROW()-1))+W1/360)))) -> 194.7147141 | Y130: 53.69994898 | Z130: 1
X131: =(((U1*T1)*SIN(2*PI()*(1*(V1/50000*(ROW()-1))+W1/360)))) -> 195.8742907 | Y131: 54.32456885 | Z131: =Z130 -> 1
X132: =(((U1*T1)*SIN(2*PI()*(1*(V1/50000*(ROW()-1))+W1/360)))) -> 197.0261345 | Y132: 54.94704409 | Z132: 1
X133: =(((U1*T1)*SIN(2*PI()*(1*(V1/50000*(ROW()-1))+W1/360)))) -> 198.1702001 | Y133: 55.5673501 | Z133: 1
X134: =(((U1*T1)*SIN(2*PI()*(1*(V1/50000*(ROW()-1))+W1/360)))) -> 199.3064422 | Y134: 56.18546242 | Z134: 1
X135: =(((U1*T1)*SIN(2*PI()*(1*(V1/50000*(ROW()-1))+W1/360)))) -> 200.4348161 | Y135: 56.80135662 | Z135: 1
X136: =(((U1*T1)*SIN(2*PI()*(1*(V1/50000*(ROW()-1))+W1/360)))) -> 201.5552771 | Y136: 57.41500841 | Z136: 1
X137: =(((U1*T1)*SIN(2*PI()*(1*(V1/50000*(ROW()-1))+W1/360)))) -> 202.6677811 | Y137: 58.02639355 | Z137: 1
X138: =(((U1*T1)*SIN(2*PI()*(1*(V1/50000*(ROW()-1))+W1/360)))) -> 203.7722841 | Y138: 58.63548791 | Z138: 1
X139: =(((U1*T1)*SIN(2*PI()*(1*(V1/50000*(ROW()-1))+W1/360)))) -> 204.8687425 | Y139: 59.24226744 | Z139: 1
X140: =(((U1*T1)*SIN(2*PI()*(1*(V1/50000*(ROW()-1))+W1/360)))) -> 205.9571131 | Y140: 59.84670818 | Z140: 1
X141: =(((U1*T1)*SIN(2*PI()*(1*(V1/50000*(ROW()-1))+W1/360)))) -> 207.0373528 | Y141: 60.44878628 | Z141: 1
X142: =(((U1*T1)*SIN(2*PI()*(1*(V1/50000*(ROW()-1))+W1/360)))) -> 208.109419 | Y142: 61.04847797 | Z142: 1
X143: =(((U1*T1)*SIN(2*PI()*(1*(V1/50000*(ROW()-1))+W1/360)))) -> 209.1732695 | Y143: 61.64575956 | Z143: 1
X144: =(((U1*T1)*SIN(2*PI()*(1*(V1/50000*(ROW()-1))+W1/360)))) -> 210.2288621 | Y144: 62.24060749 | Z144: 1
X145: =(((U1*T1)*SIN(2*PI()*(1*(V1/50000*(ROW()-1))+W1/360)))) -> 211.2761553 | Y145: 62.83299827 | Z145: 1
X146: =(((U1*T1)*SIN(2*PI()*(1*(V1/50000*(ROW()-1))+W1/360)))) -> 212.3151076 | Y146: 63.4229085 | Z146: 1
X147: =(((U1*T1)*SIN(2*PI()*(1*(V1/50000*(ROW()-1))+W1/360)))) -> 213.3456781 | Y147: 64.01031491 | Z147: 1
X148: =(((U1*T1)*SIN(2*PI()*(1*(V1/50000*(ROW()-1))+W1/360)))) -> 214.3678261 | Y148: 64.5951943 | Z148: 1
X149: =(((U1*T1)*SIN(2*PI()*(1*(V1/50000*(ROW()-1))+W1/360)))) -> 215.3815112 | Y149: 65.17752358 | Z149: 1
X150: =(((U1*T1)*SIN(2*PI()*(1*(V1/50000*(ROW()-1))+W1/360)))) -> 216.3866934 | Y150: 65.75727977 | Z150: 1
X151: =(((U1*T1)*SIN(2*PI()*(1*(V1/50000*(ROW()-1))+W1/360)))) -> 217.3833331 | Y151: 66.33443997 | Z151: 1
X152: =(((U1*T1)*SIN(2*PI()*(1*(V1/50000*(ROW()-1))+W1/360)))) -> 218.3713908 | Y152: 66.9089814 | Z152: 1
X153: =(((U1*T1)*SIN(2*PI()*(1*(V1/50000*(ROW()-1))+W1/360)))) -> 219.3508276 | Y153: 67.48088138 | Z153: 1
X154: =(((U1*T1)*SIN(2*PI()*(1*(V1/50000*(ROW()-1))+W1/360)))) -> 220.3216048 | Y154: 68.05011732 | Z154: 1
X155: =(((U1*T1)*SIN(2*PI()*(1*(V1/50000*(ROW()-1))+W1/360)))) -> 221.283684 | Y155: 68.61666677 | Z155: 1
X156: =(((U1*T1)*SIN(2*PI()*(1*(V1/50000*(ROW()-1))+W1/360)))) -> 222.2370274 | Y156: 69.18050735 | Z156: 1
X157: =(((U1*T1)*SIN(2*PI()*(1*(V1/50000*(ROW()-1))+W1/360)))) -> 223.1815972 | Y157: 69.7416168 | Z157: 1
X158: =(((U1*T1)*SIN(2*PI()*(1*(V1/50000*(ROW()-1))+W1/360)))) -> 224.1173563 | Y158: 70.29997297 | Z158: 1
X159: =(((U1*T1)*SIN(2*PI()*(1*(V1/50000*(ROW()-1))+W1/360)))) -> 225.0442675 | Y159: 70.85555382 | Z159: 1
X160: =(((U1*T1)*SIN(2*PI()*(1*(V1/50000*(ROW()-1))+W1/360)))) -> 225.9622944 | Y160: 71.40833741 | Z160: 1
X161: =(((U1*T1)*SIN(2*PI()*(1*(V1/50000*(ROW()-1))+W1/360)))) -> 226.8714006 | Y161: 71.95830192 | Z161: 1
X162: =(((U1*T1)*SIN(2*PI()*(1*(V1/50000*(ROW()-1))+W1/360)))) -> 227.7715504 | Y162: 72.50542565 | Z162: 1
X163: =(((U1*T1)*SIN(2*PI()*(1*(V1/50000*(ROW()-1))+W1/360)))) -> 228.6627082 | Y163: 73.04968698 | Z163: 1
X164: =(((U1*T1)*SIN(2*PI()*(1*(V1/50000*(ROW()-1))+W1/360)))) -> 229.5448387 | Y164: 73.59106443 | Z164: 1
X165: =(((U1*T1)*SIN(2*PI()*(1*(V1/50000*(ROW()-1))+W1/360)))) -> 230.4179072 | Y165: 74.12953664 | Z165: 1
X166: =(((U1*T1)*SIN(2*PI()*(1*(V1/50000*(ROW()-1))+W1/360)))) -> 231.2818792 | Y166: 74.66508234 | Z166: 1
X167: =(((U1*T1)*SIN(2*PI()*(1*(V1/50000*(ROW()-1))+W1/360)))) -> 232.1367206 | Y167: 75.19768039 | Z167: 1
X168: =(((U1*T1)*SIN(2*PI()*(1*(V1/50000*(ROW()-1))+W1/360)))) -> 232.9823976 | Y168: 75.72730976 | Z168: 1
X169: =(((U1*T1)*SIN(2*PI()*(1*(V1/50000*(ROW()-1))+W1/360)))) -> 233.8188768 | Y169: 76.25394955 | Z169: 1
X170: =(((U1*T1)*SIN(2*PI()*(1*(V1/50000*(ROW()-1))+W1/360)))) -> 234.6461253 | Y170: 76.77757897 | Z170: 1
X171: =(((U1*T1)*SIN(2*PI()*(1*(V1/50000*(ROW()-1))+W1/360)))) -> 235.4641104 | Y171: 77.29817734 | Z171: 1
X172: =(((U1*T1)*SIN(2*PI()*(1*(V1/50000*(ROW()-1))+W1/360)))) -> 236.2727998 | Y172: 77.8157241 | Z172: 1
X173: =(((U1*T1)*SIN(2*PI()*(1*(V1/50000*(ROW()-1))+W1/360)))) -> 237.0721615 | Y173: 78.33019884 | Z173: 1
X174: =(((U1*T1)*SIN(2*PI()*(1*(V1/50000*(ROW()-1))+W1/360)))) -> 237.862164 | Y174: 78.84158123 | Z174: 1
X175: =(((U1*T1)*SIN(2*PI()*(1*(V1/50000*(ROW()-1))+W1/360)))) -> 238.6427761 | Y175: 79.3498511 | Z175: 1
X176: =(((U1*T1)*SIN(2*PI()*(1*(V1/50000*(ROW()-1))+W1/360)))) -> 239.413967 | Y176: 79.85498836 | Z176: 1
X177: =(((U1*T1)*SIN(2*PI()*(1*(V1/50000*(ROW()-1))+W1/360)))) -> 240.1757063 | Y177: 80.35697309 | Z177: 1
X178: =(((U1*T1)*SIN(2*PI()*(1*(V1/50000*(ROW()-1))+W1/360)))) -> 240.9279638 | Y178: 80.85578546 | Z178: 1
X179: =(((U1*T1)*SIN(2*PI()*(1*(V1/50000*(ROW()-1))+W1/360)))) -> 241.6707099 | Y179: 81.35140579 | Z179: 1
X180: =(((U1*T1)*SIN(2*PI()*(1*(V1/50000*(ROW()-1))+W1/360)))) -> 242.4039153 | Y180: 81.8438145 | Z180: 1
X181: =(((U1*T1)*SIN(2*PI()*(1*(V1/50000*(ROW()-1))+W1/360)))) -> 243.1275509 | Y181: 82.33299216 | Z181: 1
X182: =(((U1*T1)*SIN(2*PI()*(1*(V1/50000*(ROW()-1))+W1/360)))) -> 243.8415884 | Y182: 82.81891945 | Z182: 1
X183: =(((U1*T1)*SIN(2*PI()*(1*(V1/50000*(ROW()-1))+W1/360)))) -> 244.5459993 | Y183: 83.30157719 | Z183: 1
X184: =(((U1*T1)*SIN(2*PI()*(1*(V1/50000*(ROW()-1))+W1/360)))) -> 245.240756 | Y184: 83.78094633 | Z184: 1
X185: =(((U1*T1)*SIN(2*PI()*(1*(V1/50000*(ROW()-1))+W1/360)))) -> 245.925831 | Y185: 84.25700794 | Z185: 1
X186: =(((U1*T1)*SIN(2*PI()*(1*(V1/50000*(ROW()-1))+W1/360)))) -> 246.6011973 | Y186: 84.72974323 | Z186: 1
X187: =(((U1*T1)*SIN(2*PI()*(1*(V1/50000*(ROW()-1))+W1/360)))) -> 247.2668282 | Y187: 85.19913353 | Z187: 1
X188: =(((U1*T1)*SIN(2*PI()*(1*(V1/50000*(ROW()-1))+W1/360)))) -> 247.9226974 | Y188: 85.66516032 | Z188: 1
X189: =(((U1*T1)*SIN(2*PI()*(1*(V1/50000*(ROW()-1))+W1/360)))) -> 248.5687791 | Y189: 86.12780519 | Z189: 1
X190: =(((U1*T1)*SIN(2*PI()*(1*(V1/50000*(ROW()-1))+W1/360)))) -> 249.2050477 | Y190: 86.58704988 | Z190: 1
X191: =(((U1*T1)*SIN(2*PI()*(1*(V1/50000*(ROW()-1))+W1/360)))) -> 249.8314781 | Y191: 87.04287627 | Z191: 1
X192: =(((U1*T1)*SIN(2*PI()*(1*(V1/50000*(ROW()-1))+W1/360)))) -> 250.4480456 | Y192: 87.49526635 | Z192: 1
X193: =(((U1*T1)*SIN(2*PI()*(1*(V1/50000*(ROW()-1))+W1/360)))) -> 251.0547258 | Y193: =((($U$2*$T$2)*SIN(2*PI()*(1*($V$2/50000*(ROW()-1))+(((((-Z193)*DEGREES(ACOS($W$2)))+$W$1))*($V$2/$V$1))/360)))) -> 87.94420227 | Z193: 1
X194: =(((U1*T1)*SIN(2*PI()*(1*(V1/50000*(ROW()-1))+W1/360)))) -> 251.6514948 | Y194: 88.38966631 | Z194: 1
X195: =(((U1*T1)*SIN(2*PI()*(1*(V1/50000*(ROW()-1))+W1/360)))) -> 252.2383291 | Y195: 88.83164087 | Z195: =Z194 -> 1
X196: =(((U1*T1)*SIN(2*PI()*(1*(V1/50000*(ROW()-1))+W1/360)))) -> 252.8152054 | Y196: 89.2701085 | Z196: 1
X197: =(((U1*T1)*SIN(2*PI()*(1*(V1/50000*(ROW()-1))+W1/360)))) -> 253.382101 | Y197: 89.70505191 | Z197: 1
X198: =(((U1*T1)*SIN(2*PI()*(1*(V1/50000*(ROW()-1))+W1/360)))) -> 253.9389935 | Y198: 90.13645392 | Z198: 1
X199: =(((U1*T1)*SIN(2*PI()*(1*(V1/50000*(ROW()-1))+W1/360)))) -> 254.4858609 | Y199: 90.56429749 | Z199: 1
X200: =(((U1*T1)*SIN(2*PI()*(1*(V1/50000*(ROW()-1))+W1/360)))) -> 255.0226816 | Y200: 90.98856574 | Z200: 1
... 1801 more rows
